Cogmind - Beta 9.3 @@@ ROGUE MODE // 2020.01.18 @ 18:51:33 // Winter2019/RPGLIKE Player: badjay Result: Crushed by singularity! Performance ------------- Evolutions (9) 4500 Regions Visited (37) 7400 Robots Destroyed (1063) 5315 Value Destroyed (58507) 58507 Prototype IDs (163) 3260 Alien Tech Used (11) 2200 Bonus (74872) 74872 TOTAL SCORE: 156054 Bonus ------- Triggered High Security 1000 Triggered Max Security 2000 High Alert Combat Kills 19108 Follower Combat Kills 4984 Network Hubs Disabled 600 Met Data Miner 300 Built Enhanced Grunts 300 Met R17 at Cetus 500 Used Core Reset Matrix 3000 Acquired SGEMP 2000 Met Sigix 2000 Activated Exoskeleton 3000 Destroyed MAIN.C Guards 500 Met MAIN.C 5000 Destroyed MAIN.C Shell 5000 Destroyed MAIN.C 10000 Met Architect 300 Destroyed A8 300 Destroyed A6 400 Destroyed A5 500 Destroyed A4 700 Destroyed Architect 15000 Friendly Fire -1620 Cogmind --------- Core Integrity 0/600 Matter 395/425 Energy 1450/1450 System Corruption 0% Temperature Cool (0) Movement Flying (32) Location -1/Access_0 Parts ------- > --- POWER (3) -------- Micro Fission Core Zero-point Reactor Zero-point Reactor > --- PROPULSION (2) --- Cooled Field Propulsion Drive Cooled Impulse Thruster > --- UTILITY (15) ----- Experimental Energy Well Long-range Terrain Scanner Experimental Melee Analysis Suite Experimental Target Analyzer Experimental Core Analyzer Advanced Armor Integrity Analyzer Femtoactuators Experimental Actuator Array Advanced Force Booster Experimental Phase Shifter AEGIS Remote Shield Architect God Chip A Ghost Barrier Architect God Chip D > --- WEAPON (6) ------- Lance Kinetic Spear Kinetic Spear Plasma Lance Plasma Lance Enhanced Force Lance > --- INVENTORY (4) ---- Protomatter-100 Protomatter-100 Protomatter-99 Experimental Energy Well (1000) Peak State ------------ > --- POWER ------------ Micro Fission Core Zero-point Reactor Zero-point Reactor > --- PROPULSION ------- Cooled Field Propulsion Drive Cooled Impulse Thruster > --- UTILITY ---------- Experimental Energy Well Long-range Terrain Scanner Experimental Melee Analysis Suite Experimental Target Analyzer Experimental Core Analyzer Femtoactuators Experimental Actuator Array Advanced Force Booster Advanced Reaction Control System Experimental Phase Shifter AEGIS Remote Shield Experimental Hacking Suite Architect God Chip A Ghost Barrier Architect God Chip D > --- WEAPON ----------- Lance Kinetic Spear Kinetic Spear Plasma Lance Plasma Lance Enhanced Force Lance > --- INVENTORY -------- Protomatter Protomatter Protomatter Experimental Energy Well [Rating: 229] Favorites ----------- Power Cooled Ion Engine Engine Cooled Ion Engine Power Core Light Neutrino Core Reactor Zero-point Reactor Propulsion Cooled VTOL Module Hover Unit Cooled Antigrav System Flight Unit Cooled VTOL Module Utility Improved Melee Analysis Suite Device Long-range Terrain Scanner Storage Experimental Energy Well Processor Improved Melee Analysis Suite Hackware Experimental Hacking Suite Protection Experimental Powered Armor Weapon Lance Energy Gun Improved EM Shotgun Ballistic Gun Light Assault Rifle Impact Weapon Powered Hammer Slashing Weapon Greatsword Piercing Weapon Lance Special Melee Weapon Improved Datajack Build | -11 -10 -10 -9 -9 -8 -7 -7 -7 -7 -7 -7 -6 -6 -6 -6 -6 -5 -5 -5 -5 -5 -5 -5 -5 -4 -4 -4 -4 -4 -3 -3 -2 -2 -2 -1 -1 -1 ------- Run | Scr Mat Min Mat Sto Mat Fac Was Fac Low Low Zio Pro Fac Low Low Dat Pro Fac Was Fac Ext Cet Arc Hub Fac Was Fac Arm Lab Res Tes Res Qua Sec Acc Com Ac0 Slots Evolved 19 | . 1 1 5 2 2 3 . . . . . 1 . . . . . 1 . . . . . . . 1 . . . . 1 . 1 . . . . Power 1 | . . . 1 . . . . . . . . . . . . . . . . . . . . . . . . . . . . . . . . . . Propulsion 1 | . . 1 . . . . . . . . . . . . . . . . . . . . . . . . . . . . . . . . . . . Utility 14 | . . . 3 1 2 3 . . . . . 1 . . . . . 1 . . . . . . . 1 . . . . 1 . 1 . . . . Weapon 3 | . 1 . 1 1 . . . . . . . . . . . . . . . . . . . . . . . . . . . . . . . . . Parts Attached 405 | . 4 2 17 8 10 33 . 18 1 . 3 3 20 3 1 . 3 23 . 6 3 2 . 3 5 4 9 13 . 27 33 8 14 34 5 51 39 Power 47 | . 1 . 4 . . 1 . 2 . . . . 5 . . . . 3 . 1 . . . . . . . . . 1 4 . . 9 4 8 4 Engine 15 | . 1 . 4 . . 1 . 2 . . . . 5 . . . . 1 . . . . . . . . . . . . . . . . . 1 . Core 14 | . . . . . . . . . . . . . . . . . . 1 . 1 . . . . . . . . . 1 2 . . 4 1 2 2 Reactor 18 | . . . . . . . . . . . . . . . . . . 1 . . . . . . . . . . . . 2 . . 5 3 5 2 Propulsion 34 | . 1 2 3 2 . 1 . 1 . . . . 4 . . . . . . . . . . . . . . 2 . 4 . . 3 . . 8 3 Treads . | . . . . . . . . . . . . . . . . . . . . . . . . . . . . . . . . . . . . . . Leg . | . . . . . . . . . . . . . . . . . . . . . . . . . . . . . . . . . . . . . . Wheel . | . . . . . . . . . . . . . . . . . . . . . . . . . . . . . . . . . . . . . . Hover 1 | . . . . . . . . . . . . . . . . . . . . . . . . . . . . . . . . . . . . . 1 Flight 33 | . 1 2 3 2 . 1 . 1 . . . . 4 . . . . . . . . . . . . . . 2 . 4 . . 3 . . 8 2 Utility 248 | . . . 4 1 6 13 . 9 1 . 2 3 7 3 1 . 1 17 . 4 3 2 . 1 5 4 7 7 . 21 26 8 11 22 1 28 30 Device 182 | . . . . . . 2 . 5 1 . 2 3 5 3 1 . . 12 . 1 2 2 . 1 5 4 5 4 . 18 23 7 10 18 1 25 22 Storage 5 | . . . . . . . . . . . . . . . . . . . . . . . . . . . . . . . 1 1 1 . . 2 . Processor 38 | . . . 4 1 5 8 . 3 . . . . 2 . . . . 2 . 1 1 . . . . . 1 . . 3 2 . . 3 . 1 1 Hackware 21 | . . . . . 1 3 . 1 . . . . . . . . 1 3 . 2 . . . . . . 1 3 . . . . . 1 . . 5 Protection 2 | . . . . . . . . . . . . . . . . . . . . . . . . . . . . . . . . . . . . . 2 Artifact . | . . . . . . . . . . . . . . . . . . . . . . . . . . . . . . . . . . . . . . Weapon 76 | . 2 . 6 5 4 18 . 6 . . 1 . 4 . . . 2 3 . 1 . . . 2 . . 2 4 . 1 3 . . 3 . 7 2 Energy Gun 24 | . 2 . 4 3 4 10 . . . . . . . . . . 1 . . . . . . . . . . . . . . . . . . . . Energy Cannon . | . . . . . . . . . . . . . . . . . . . . . . . . . . . . . . . . . . . . . . Ballistic Gun 3 | . . . 2 . . . . . . . . . . . . . . . . . . . . 1 . . . . . . . . . . . . . Ballistic Cannon . | . . . . . . . . . . . . . . . . . . . . . . . . . . . . . . . . . . . . . . Launcher . | . . . . . . . . . . . . . . . . . . . . . . . . . . . . . . . . . . . . . . Special Weapon . | . . . . . . . . . . . . . . . . . . . . . . . . . . . . . . . . . . . . . . Impact Weapon 6 | . . . . . . . . 2 . . . . . . . . . . . . . . . . . . . 2 . . . . . 1 . . 1 Slashing Weapon 16 | . . . . 2 . 8 . 2 . . 1 . . . . . . . . . . . . . . . . . . . 1 . . . . 2 . Piercing Weapon 26 | . . . . . . . . 2 . . . . 4 . . . 1 2 . 1 . . . 1 . . 2 2 . 1 2 . . 2 . 5 1 Special Melee Weapon 1 | . . . . . . . . . . . . . . . . . . 1 . . . . . . . . . . . . . . . . . . . Unidentified Prototypes 71 | . . . . . . 4 . 2 1 . 1 . 3 . . . . 2 . . . . . . 2 1 1 3 . 4 13 2 4 3 . 7 18 Parts Lost 6 | . 1 . 1 . . 1 . . . . . . . . . . . 2 . 1 . . . . . . . . . . . . . . . . . Power 1 | . . . . . . 1 . . . . . . . . . . . . . . . . . . . . . . . . . . . . . . . Propulsion . | . . . . . . . . . . . . . . . . . . . . . . . . . . . . . . . . . . . . . . Utility 3 | . . . . . . . . . . . . . . . . . . 2 . 1 . . . . . . . . . . . . . . . . . Weapon 2 | . 1 . 1 . . . . . . . . . . . . . . . . . . . . . . . . . . . . . . . . . . Highest Loss Streak 1 | . 1 . 1 . . 1 . . . . . . . . . . . 1 . 1 . . . . . . . . . . . . . . . . . Average Slot Usage (%) 96 | . 64 64 96 100 99 95 94 93 92 89 93 95 94 95 95 95 95 96 100 99 100 100 100 99 100 99 98 100 100 99 99 100 97 96 92 98 99 Engine 6 | . 18 17 12 15 13 12 11 11 10 10 10 10 9 10 10 10 10 6 4 4 4 4 4 4 4 4 4 4 4 4 1 . . . . . . Core 1 | . . . . . . . . . . . . . . . . . . 2 4 4 4 4 4 4 4 4 4 4 4 3 3 4 4 3 2 2 2 Reactor 1 | . . . . . . . . . . . . . . . . . . . . . . . . . . . . . . . 2 4 4 3 3 6 7 Flight 10 | . 12 28 21 15 13 12 11 11 10 10 10 10 10 10 10 10 10 9 9 9 9 9 9 9 9 9 9 9 9 8 8 8 8 7 7 6 6 Device 18 | . . . . . . 1 5 5 15 15 15 21 25 25 25 25 25 23 23 23 23 23 23 22 23 22 21 22 22 21 25 23 29 28 26 25 25 Processor 22 | . . . 38 36 38 37 33 36 26 26 26 23 20 20 20 20 20 20 23 23 23 23 23 23 23 22 22 20 18 18 17 17 16 18 19 15 14 Hackware 10 | . . . . . 3 10 16 11 10 10 10 10 10 10 10 10 10 11 9 8 9 9 9 9 9 9 11 15 18 18 17 16 12 11 11 11 11 Energy Gun 4 | . 33 17 19 30 27 15 . . . . . . . . . . . . . . . . . . . . . . . . . . . . . . . Slashing Weapon 2 | . . . . . . 5 16 13 5 5 9 10 5 5 5 5 5 2 . . . . . . . . . . . . . . . . . . . Piercing Weapon 14 | . . . . . . . . 2 10 10 10 10 14 15 15 15 14 15 19 20 23 23 23 22 23 22 22 22 22 22 20 21 20 19 19 22 23 Naked Turns 9 | . 9 . . . . . . . . . . . . . . . . . . . . . . . . . . . . . . . . . . . . Heaviest Build 89 | . 9 7 25 28 28 31 30 33 33 33 35 37 49 49 45 45 45 49 45 56 61 57 56 58 56 56 64 66 64 69 76 75 75 75 79 89 89 Greatest Support 102 | 3 14 18 25 32 32 33 33 36 36 36 36 41 50 50 50 54 50 54 54 64 64 60 60 64 60 60 69 77 77 82 76 76 76 82 81 102 102 Greatest Overweight (x) 1 | . 1 . . . . . . . . . . . . . . . . . . . 1 . . . . . . . . . . . 1 . . 1 1 Average Overweight (x) . | . . . . . . . . . . . . . . . . . . . . . . . . . . . . . . . . . . . . . . Largest Inventory Capacity 4 | . . . 1 2 2 4 4 4 4 4 4 4 4 4 4 4 4 4 4 4 4 4 4 4 4 4 4 4 4 4 4 4 4 4 4 4 4 Average Capacity 3 | . . . . 1 2 3 4 4 4 4 4 4 4 4 4 4 4 4 4 4 4 4 4 4 4 4 4 4 4 4 4 4 4 4 4 4 4 Most Carried 4 | . . . 1 2 2 4 2 4 4 4 4 4 4 4 4 4 4 4 4 4 4 4 4 4 4 4 4 4 4 4 4 4 4 4 3 4 4 Average Carried 3 | . . . . 1 1 2 2 3 3 4 4 3 3 4 4 4 4 3 4 4 4 4 4 4 3 3 4 4 4 3 3 3 3 3 2 3 3 Final Capacity 4 | . . . 1 2 2 4 4 4 4 4 4 4 4 4 4 4 4 4 4 4 4 4 4 4 4 4 4 4 4 4 4 4 4 4 4 4 4 Final Carried 4 | . . . 1 2 2 2 2 2 4 4 4 3 4 4 4 4 4 4 4 4 4 4 4 4 4 4 4 4 4 4 4 4 4 2 2 1 4 Class Distribution -------------------- 46% | Hacker-Sprinter 30% | Wizard-Sprinter 7% | Machinist-Sprinter 5% | Hacker-Mutant 4% | Wizard-Scout Dominant Class ---------------- Hacker-Mutant | -10/Materials Hacker-Mutant | -10/Mines Hacker-Mutant | -9/Materials Hacker-Sprinter | -9/Storage Hacker-Sprinter | -8/Materials Hacker-Sprinter | -7/Factory Hacker-Sprinter | -7/Waste Hacker-Sprinter | -7/Factory Hacker-Sprinter | -7/Lower Caves Hacker-Sprinter | -7/Lower Caves Hacker-Sprinter | -7/Zion Hacker-Sprinter | -6/Proximity Caves Hacker-Sprinter | -6/Factory Machinist-Sprinter | -6/Lower Caves Machinist-Sprinter | -6/Lower Caves Machinist-Sprinter | -6/Data Miner Hacker-Sprinter | -5/Proximity Caves Hacker-Sprinter | -5/Factory Hacker-Sprinter | -5/Waste Hacker-Sprinter | -5/Factory Hacker-Sprinter | -5/Extension Hacker-Sprinter | -5/Cetus Hacker-Sprinter | -5/Archives Hacker-Sprinter | -5/Hub_04(d) Hacker-Sprinter | -4/Factory Hacker-Sprinter | -4/Waste Wizard-Sprinter | -4/Factory Wizard-Mutant | -4/Armory Wizard-Mutant | -4/Lab Wizard-Sprinter | -3/Research Wizard-Sprinter | -3/Testing Wizard-Sprinter | -2/Research Wizard-Sprinter | -2/Quarantine Wizard-Sprinter | -2/Section 7 Wizard-Sprinter | -1/Access Wizard-Sprinter | -1/Command Wizard-Scout | -1/Access_0 Resources | -11 -10 -10 -9 -9 -8 -7 -7 -7 -7 -7 -7 -6 -6 -6 -6 -6 -5 -5 -5 -5 -5 -5 -5 -5 -4 -4 -4 -4 -4 -3 -3 -2 -2 -2 -1 -1 -1 ----------- Run | Scr Mat Min Mat Sto Mat Fac Was Fac Low Low Zio Pro Fac Low Low Dat Pro Fac Was Fac Ext Cet Arc Hub Fac Was Fac Arm Lab Res Tes Res Qua Sec Acc Com Ac0 Matter Collected 4685 | 200 40 20 223 80 110 351 . 248 20 . 30 30 200 30 10 . 30 210 . 80 30 20 . 48 60 . 130 130 . 270 250 140 170 595 46 504 380 Remotely . | . . . . . . . . . . . . . . . . . . . . . . . . . . . . . . . . . . . . . . Salvage Created 53549 | . 772 70 1771 1478 2057 1902 . 1209 312 714 . 353 1865 628 1001 . 864 3478 . 1072 1389 358 169 2844 1081 548 1850 1180 . 4916 1317 3918 1124 3890 872 4780 3767 Parts 3026 | . 39 12 126 118 107 109 . 71 34 39 . 25 82 39 39 . 44 207 . 88 60 16 5 100 49 16 91 84 . 281 73 235 67 194 36 279 261 Haulers Intercepted 42 | . 2 . 5 4 6 1 . 3 . . . . 4 . . . . . . . 6 . . 1 . . 2 . . . . 5 1 . 2 . . Recyclers Shooed 1 | . . . . . 1 . . . . . . . . . . . . . . . . . . . . . . . . . . . . . . . . Parts Field Recycled . | . . . . . . . . . . . . . . . . . . . . . . . . . . . . . . . . . . . . . . Retrieved Matter . | . . . . . . . . . . . . . . . . . . . . . . . . . . . . . . . . . . . . . . Parts Self-Destructed 225 | . . . . . . . . . 44 45 . 27 . 39 25 . 45 . . . . . . . . . . . . . . . . . . . . Prevented 11 | . . . . . . . . . 8 . . 2 . 1 . . . . . . . . . . . . . . . . . . . . . . . Kills | -11 -10 -10 -9 -9 -8 -7 -7 -7 -7 -7 -7 -6 -6 -6 -6 -6 -5 -5 -5 -5 -5 -5 -5 -5 -4 -4 -4 -4 -4 -3 -3 -2 -2 -2 -1 -1 -1 ------- Run | Scr Mat Min Mat Sto Mat Fac Was Fac Low Low Zio Pro Fac Low Low Dat Pro Fac Was Fac Ext Cet Arc Hub Fac Was Fac Arm Lab Res Tes Res Qua Sec Acc Com Ac0 Combat Hostiles Destroyed 880 | . 15 6 36 39 32 43 . 29 12 18 . 9 26 16 20 . 18 69 . 28 16 5 1 28 14 . 32 25 . 76 17 54 16 53 7 75 45 Melee 711 | . . . . . . 2 . 29 12 18 . 9 26 16 20 . 18 69 . 28 16 5 1 28 14 . 32 25 . 76 17 54 16 53 7 75 45 Guns 134 | . 12 4 34 31 26 27 . . . . . . . . . . . . . . . . . . . . . . . . . . . . . . . AOE 28 | . 3 2 1 7 6 9 . . . . . . . . . . . . . . . . . . . . . . . . . . . . . . . Classes Destroyed 25 | . 6 . 5 . 2 1 . . 1 . . . . . 1 . . 1 . . . . . . . . 1 2 . 1 3 . 1 . . . . Worker 20 | . 1 . 2 . 2 1 . . . . . . 1 . . . . 1 . . . . . 10 1 . . . . . . . . . . 1 . Builder 10 | . 1 . 1 . 2 1 . . . . . . . . . . . . . . . . . 5 . . . . . . . . . . . . . Tunneler 3 | . . . 3 . . . . . . . . . . . . . . . . . . . . . . . . . . . . . . . . . . Hauler 42 | . 2 . 5 4 6 1 . 3 . . . . 4 . . . . . . . 6 . . 1 . . 2 . . . . 5 1 . 2 . . Recycler 11 | . . . 1 . 4 1 . . . . . . 1 . . . . . . . . . . 1 1 . . . . . . . 2 . . . . Carrier 2 | . . . . . . . . . . . . . . . . . . . . . . . . . . . . . . 2 . . . . . . . Operator 4 | . . . . . 1 . . . . . . . . . . . . . . . . . 1 1 . . . . . . . . . . . 1 . Watcher 74 | . 1 . 4 2 3 5 . 7 . . . . 4 . . . . 7 . 4 1 . . 2 . . 2 2 . 10 2 10 1 4 1 2 . Swarmer 163 | . 3 4 8 7 5 6 . 10 5 11 . 4 3 5 5 . 5 11 . . 1 . . 2 . . 6 5 . 14 3 9 9 15 . 7 . Saboteur 7 | . . . . . . . . . . . . . . . . . . . . . . . . . . . . 2 . 1 . 1 . 1 . 2 . Grunt 313 | . 12 2 18 16 19 23 . 9 5 6 . . 12 6 3 . 7 31 . 16 4 1 . 14 10 . 9 . . 28 4 16 . 14 3 25 . Brawler 29 | . . . 1 4 . . . 1 . . . . 1 . 1 . 1 3 . . . . . 2 . . 2 5 . 1 . 3 . 1 . 3 . Duelist 26 | . . . 1 2 2 1 . . . . . . 2 1 1 . 2 2 . 2 . . . 1 . . 1 . . . . 3 . . . 5 . Protector 1 | . . . . . . . . . . . . . . . . . . . . . . . . . . . 1 . . . . . . . . . . Researcher 12 | . . . . . . . . . . . . . . . . . . . . . . . . . . . . . . . 3 . 1 8 . . . Sentry 134 | . . . 8 10 6 9 . 6 1 1 . 1 6 1 1 . 2 11 . 5 7 . 1 7 4 . 5 4 . 16 2 6 . 10 . 4 . Demolisher 3 | . . . . . . . . . . . . . . . . . . 1 . . . . . 1 . . . . . . . . . . . 1 . Specialist 9 | . . . . . . . . . . . . . . . . . . . . . . . . . . . . 5 . . . . 4 . . . . Hunter 42 | . . . . . 1 2 . 1 . . . 2 . 2 2 . 1 5 . 2 . . . . . . 1 . . 3 2 6 . 2 2 8 . Programmer 60 | . . . . . . 2 . 2 . . . 1 1 . . . . 5 . 2 . 1 . . . . 6 3 . 10 2 8 2 3 2 10 . Behemoth 21 | . . . . . . . . . 1 . . 1 1 1 . . . . . 1 2 . . 1 . . 1 1 . 3 . 2 . 2 . 4 . Cetus Guard 3 | . . . . . . . . . . . . . . . . . . . . . . 3 . . . . . . . . . . . . . . . S7 Guard 3 | . . . . . . . . . . . . . . . . . . . . . . . . . . . . . . . . . . 3 . . . M Guard 2 | . . . . . . . . . . . . . . . . . . . . . . . . . . . . . . . . . . . . 2 . Enhanced Grunt 25 | . . . . . . . . . . . . . . . . . . . . . . . . . . . . . . . . . . . . . 25 Enhanced Sentry 6 | . . . . . . . . . . . . . . . . . . . . . . . . . . . . . . . . . . . . . 6 Enhanced Hunter 5 | . . . . . . . . . . . . . . . . . . . . . . . . . . . . . . . . . . . . . 5 Enhanced Programmer 4 | . . . . . . . . . . . . . . . . . . . . . . . . . . . . . . . . . . . . . 4 Combat Programmer 2 | . . . . . . . . . . . . . . . . . . . . . . . . . . . . . . . . . . . . 2 . Striker 2 | . . . . . . . . . . . . . . . . . . . . . . . . . . . . . . . 2 . . . . . . Alpha 7 3 | . . . . . . . . . . . . . . . . . . . . . . . . . . . . . . . 1 . . 2 . . . Fortress 1 | . . . . . . . . . . . . . . . . . . . . . . . . . . . . . . . . . 1 . . . . Protovariant Y 1 | . . . . . . . . . . . . . . . . . . . . . . . . . . . . . . . 1 . . . . . . Thug 3 | . . . . . 1 . . . . . . . . . . . . . . . . . . 2 . . . . . . . . . . . . . Savage 1 | . . . . . . . . . . . . . . . 1 . . . . . . . . . . . . . . . . . . . . . . Butcher 6 | . . . . . . . . . . . . . . . 5 . . . . . 1 . . . . . . . . . . . . . . . . Guerrilla 2 | . . . . . . . . . . . . . . . . . . . . . 1 . . 1 . . . . . . . . . . . . . Mutant 1 | . . . . . . . . . . . . . . . 1 . . . . . . . . . . . . . . . . . . . . . . Best Kill Streak 44 | . 7 3 8 10 7 5 . 6 4 10 . 4 5 4 8 . 7 7 . 3 7 2 2 13 6 . 8 8 . 11 5 14 8 25 3 44 7 Combat Bots Only 42 | . 4 3 7 10 6 5 . 5 4 10 . 4 4 4 8 . 7 7 . 3 5 2 1 6 5 . 7 8 . 10 5 14 8 21 3 42 7 Max Kills in Single Turn 9 | . 2 2 3 4 5 3 . 2 2 2 . 1 1 2 1 . 1 2 . 1 1 1 1 9 1 . 2 1 . 2 2 2 2 3 2 3 2 Gunslinging 1 | . 1 . 1 1 1 . . . . . . . . . . . . . . . . . . . . . . . . . . . . . . . . Exploded 3 | . 2 2 1 2 1 3 . . . . . . . . . . . . . . . . . . . . . . . . . . . . . . . Melee 3 | . . . . . . 1 . 2 2 2 . 1 1 2 1 . 1 2 . 1 1 1 1 2 1 . 2 1 . 2 2 2 2 3 2 3 2 Uniques/NPCs Destroyed 6 | . . . . . . . . . . . . . . . . . . . . . . . . . . . . . . . . . . . . 1 5 MAIN.C Shell (-1/Command) MAIN.C (-1/Command) A8 (-1/Access_0) A6 (-1/Access_0) A5 (-1/Access_0) A4 (-1/Access_0) Architect (-1/Access_0) Combat | -11 -10 -10 -9 -9 -8 -7 -7 -7 -7 -7 -7 -6 -6 -6 -6 -6 -5 -5 -5 -5 -5 -5 -5 -5 -4 -4 -4 -4 -4 -3 -3 -2 -2 -2 -1 -1 -1 -------- Run | Scr Mat Min Mat Sto Mat Fac Was Fac Low Low Zio Pro Fac Low Low Dat Pro Fac Was Fac Ext Cet Arc Hub Fac Was Fac Arm Lab Res Tes Res Qua Sec Acc Com Ac0 Damage Taken 21318 | . 554 125 1159 788 858 1958 . 1044 417 703 . 233 310 361 268 67 228 1658 . 469 161 295 25 536 113 . 1043 754 . 1414 162 1175 300 766 149 1559 1666 Core 17310 | . 465 101 971 623 694 1568 . 839 337 568 . 191 252 297 219 60 190 1323 . 388 126 235 19 426 87 . 847 602 . 1153 124 962 239 621 124 1305 1354 Absorbed by Shields 10163 | . . . . . . . . 43 158 274 . 86 118 131 96 24 86 593 . 321 131 275 26 420 118 . 669 198 . 950 159 1130 287 606 126 1519 1619 Redirected to Core 13629 | . 290 76 618 547 595 1295 . 643 267 433 . 133 194 228 175 27 127 1192 . 290 120 210 19 373 79 . 664 561 . 870 124 727 200 490 90 862 1110 Core Remaining (%) 89 | 100 . 100 . 100 95 . . . . . . 100 . . . . 91 . . . . . . 79 . . . . 40 . 100 . . 92 . . . Volleys Fired 380 | . 43 23 114 52 60 81 . . . . . . . . . . . . . . . . . 7 . . . . . . . . . . . . . Largest 4 | . 2 1 3 4 4 4 . . . . . . . . . . . . . . . . . 1 . . . . . . . . . . . . . Hottest 180 | . 80 40 135 180 180 180 . . . . . . . . . . . . . . . . . 33 . . . . . . . . . . . . . Shots Fired 1028 | . 77 23 193 205 240 283 . . . . . . . . . . . . . . . . . 7 . . . . . . . . . . . . . Gun 1028 | . 77 23 193 205 240 283 . . . . . . . . . . . . . . . . . 7 . . . . . . . . . . . . . Cannon . | . . . . . . . . . . . . . . . . . . . . . . . . . . . . . . . . . . . . . . Launcher . | . . . . . . . . . . . . . . . . . . . . . . . . . . . . . . . . . . . . . . Special . | . . . . . . . . . . . . . . . . . . . . . . . . . . . . . . . . . . . . . . Kinetic 60 | . . . 53 . . . . . . . . . . . . . . . . . . . . 7 . . . . . . . . . . . . . Thermal 1 | . . . 1 . . . . . . . . . . . . . . . . . . . . . . . . . . . . . . . . . . Explosive . | . . . . . . . . . . . . . . . . . . . . . . . . . . . . . . . . . . . . . . Electromagnetic 967 | . 77 23 139 205 240 283 . . . . . . . . . . . . . . . . . . . . . . . . . . . . . . . Robot Hit Streak 43 | . 13 16 43 42 26 38 . . . . . . . . . . . . . . . . . . . . . . . . . . . . . . . Robot Miss Streak 5 | . 3 1 2 5 4 2 . . . . . . . . . . . . . . . . . . . . . . . . . . . . . . . Penetration Max . | . . . . . . . . . . . . . . . . . . . . . . . . . . . . . . . . . . . . . . Secondary Targets 32 | . 2 . 6 9 6 9 . . . . . . . . . . . . . . . . . . . . . . . . . . . . . . . Max Gunslinging Chain 2 | . 1 . 1 2 1 1 . . . . . . . . . . . . . . . . . . . . . . . . . . . . . . . Shots Hit Robots 2938 | . 53 20 156 168 169 251 . 95 26 35 . 25 93 31 57 1 33 180 . 80 39 32 4 59 29 10 93 52 . 182 38 168 52 123 21 212 351 Core Hits 1795 | . 32 8 100 92 110 138 . 41 14 18 . 11 42 18 25 . 25 102 . 45 27 15 3 65 20 5 52 34 . 123 32 107 32 86 13 126 234 Critical Hits 381 | . . . 2 . 3 9 . 12 4 6 . 3 15 3 4 . 5 24 . 19 11 2 . 6 4 2 13 14 . 42 4 36 11 26 6 33 62 Critical Kills 146 | . . . 1 . . 4 . 5 2 4 . 1 7 1 2 . 1 12 . 6 4 . . 1 1 . 6 11 . 21 4 14 1 11 3 13 10 Critical Parts Destroyed 163 | . . . 1 . 3 4 . 7 2 2 . 2 8 2 2 . 3 10 . 11 6 2 . 3 3 . 5 3 . 14 . 17 5 6 3 13 26 Melee Attacks 3169 | . . . . 3 . 14 . 133 36 45 . 39 173 37 70 1 43 245 . 107 55 44 10 85 33 11 147 129 3 300 91 229 76 206 37 361 406 Impact . | . . . . . . . . . . . . . . . . . . . . . . . . . . . . . . . . . . . . . . Slashing 492 | . . . . 3 . 14 . 129 25 34 . 26 117 21 40 1 25 57 . . . . . . . . . . . . . . . . . . . Piercing 2677 | . . . . . . . . 4 11 11 . 13 56 16 30 . 18 188 . 107 55 44 10 85 33 11 147 129 3 300 91 229 76 206 37 361 406 Sneak Attacks 134 | . . . . . . . . 9 2 . . 2 11 1 3 1 . 10 . 1 14 . 1 6 3 . 6 2 . 13 6 8 9 16 2 5 3 Combat Hostiles 65 | . . . . . . . . 3 2 . . 2 3 1 2 . . 9 . 1 3 . . 5 1 . 3 2 . 10 3 2 1 5 . 4 3 Follow-up Attacks 884 | . . . . . . 1 . 21 5 9 . 12 27 10 18 . 12 57 . 21 11 15 . 14 7 2 39 17 . 63 13 88 28 51 11 111 221 Damage Inflicted 168806 | . 1202 339 2821 2935 3791 5283 . 6584 1768 2329 . 1412 6282 1895 3078 183 1822 10778 . 4626 3477 1747 333 6084 1796 732 5755 3439 . 12380 3153 11564 4959 12257 2019 18566 23417 Guns 11939 | . 724 241 2290 2464 2503 3717 . . . . . . . . . . . . . . . . . . . . . . . . . . . . . . . Cannons . | . . . . . . . . . . . . . . . . . . . . . . . . . . . . . . . . . . . . . . Explosions 6232 | . 478 98 531 471 1288 1111 . . . . . . . . . . . . . . . . . 2186 . . . . . . . . . . . 69 . Melee 150635 | . . . . . . 455 . 6584 1768 2329 . 1412 6282 1895 3078 183 1822 10778 . 4626 3477 1747 333 3898 1796 732 5755 3439 . 12380 3153 11564 4959 12257 2019 18497 23417 Ramming . | . . . . . . . . . . . . . . . . . . . . . . . . . . . . . . . . . . . . . . Kinetic 345 | . . . 345 . . . . . . . . . . . . . . . . . . . . . . . . . . . . . . . . . . Thermal 3930 | . 478 98 541 471 1231 1111 . . . . . . . . . . . . . . . . . . . . . . . . . . . . . . . Explosive 69 | . . . . . . . . . . . . . . . . . . . . . . . . . . . . . . . . . . . . 69 . Electromagnetic 13827 | . 724 241 1935 2464 2560 3717 . . . . . . . . . . . . . . . . . 2186 . . . . . . . . . . . . . Impact . | . . . . . . . . . . . . . . . . . . . . . . . . . . . . . . . . . . . . . . Slashing 24833 | . . . . . . 455 . 6545 1586 1921 . 1041 5250 1441 2326 183 1321 2764 . . . . . . . . . . . . . . . . . . . Piercing 125802 | . . . . . . . . 39 182 408 . 371 1032 454 752 . 501 8014 . 4626 3477 1747 333 3898 1796 732 5755 3439 . 12380 3153 11564 4959 12257 2019 18497 23417 Highest Corruption 8 | . . . . 1 3 5 8 8 . . . . 1 1 . . . 2 . 1 1 1 . 2 . . 1 1 . 1 1 . . . . . . Average Corruption 2 | . . . . 1 2 4 3 3 . . . . 1 1 . . . 1 . 1 1 1 . 2 . . 1 1 . 1 1 . . . . . . Corruption Purged 24 | . . . . . . 4 . 10 . . . . 1 1 . . . 3 . . . 1 . . . . 1 1 . 1 1 . . . . . . Effects 90 | . . . . . 9 32 . 28 . . . . . 1 . . . 8 . . . . . 1 . . 3 3 . . 5 . . . . . . Message Errors 22 | . . . . . 1 7 . 5 . . . . . . . . . 3 . . . . . 1 . . . 2 . . 3 . . . . . . Matter Fused 13 | . . . . . 2 5 . 6 . . . . . . . . . . . . . . . . . . . . . . . . . . . . . Heat Flow Errors 13 | . . . . . . 6 . 5 . . . . . . . . . 2 . . . . . . . . . . . . . . . . . . . Energy Discharges 13 | . . . . . 3 4 . 3 . . . . . 1 . . . 1 . . . . . . . . 1 . . . . . . . . . . Data Loss (minor) 13 | . . . . . . 4 . 5 . . . . . . . . . 1 . . . . . . . . 2 . . . 1 . . . . . . Misfires 1 | . . . . . . 1 . . . . . . . . . . . . . . . . . . . . . . . . . . . . . . . Targeting Errors 13 | . . . . . 3 3 . 4 . . . . . . . . . 1 . . . . . . . . . 1 . . 1 . . . . . . Weapon Failures 2 | . . . . . . 2 . . . . . . . . . . . . . . . . . . . . . . . . . . . . . . . Overload Shots . | . . . . . . . . . . . . . . . . . . . . . . . . . . . . . . . . . . . . . . Overflow Damage 8180 | . 32 . 31 16 108 80 . 977 267 397 . 88 820 22 181 173 126 634 . 151 74 67 . 380 115 . 232 113 . 748 153 279 194 647 34 597 444 Projectiles . | . . . . . . . . . . . . . . . . . . . . . . . . . . . . . . . . . . . . . . Explosions 460 | . 32 . 31 16 108 25 . . . . . . . . . . . . . . . . . 248 . . . . . . . . . . . . . Melee 7720 | . . . . . . 55 . 977 267 397 . 88 820 22 181 173 126 634 . 151 74 67 . 132 115 . 232 113 . 748 153 279 194 647 34 597 444 Knockbacks . | . . . . . . . . . . . . . . . . . . . . . . . . . . . . . . . . . . . . . . Impact . | . . . . . . . . . . . . . . . . . . . . . . . . . . . . . . . . . . . . . . Kinetic . | . . . . . . . . . . . . . . . . . . . . . . . . . . . . . . . . . . . . . . Secondary . | . . . . . . . . . . . . . . . . . . . . . . . . . . . . . . . . . . . . . . Self-Inflicted Damage 1295 | . 170 . 173 47 168 340 . . . . . . . . . . . . . . . . . 242 . . . . . . . . . . . 155 . Shots 30 | . 5 . 6 1 4 10 . . . . . . . . . . . . . . . . . 3 . . . . . . . . . . . 1 . Rammed . | . . . . . . . . . . . . . . . . . . . . . . . . . . . . . . . . . . . . . . Targets Rammed . | . . . . . . . . . . . . . . . . . . . . . . . . . . . . . . . . . . . . . . Kicked . | . . . . . . . . . . . . . . . . . . . . . . . . . . . . . . . . . . . . . . Crushed . | . . . . . . . . . . . . . . . . . . . . . . . . . . . . . . . . . . . . . . Highest Temperature 429 | . 174 93 429 385 344 409 . 262 . . . . . . . . . 243 . . 1 . . 5 . . 4 . . 6 . 200 6 25 . . . Average Temperature 108 | . 51 28 107 123 133 114 . 122 . . . . . . . . . 113 . . 1 . . 2 . . 3 . . 3 . 77 4 12 . . . Received Heat Transfer 3436 | . 105 54 393 288 288 573 . 234 137 48 . 14 62 75 26 8 30 249 . 106 32 23 4 45 25 . 116 . . 162 16 152 4 66 13 28 60 Effects 20 | . . . 9 3 1 7 . . . . . . . . . . . . . . . . . . . . . . . . . . . . . . . Shutdowns 1 | . . . 1 . . . . . . . . . . . . . . . . . . . . . . . . . . . . . . . . . . Energy Bleed 3 | . . . 1 . 1 1 . . . . . . . . . . . . . . . . . . . . . . . . . . . . . . . Interference 15 | . . . 6 3 . 6 . . . . . . . . . . . . . . . . . . . . . . . . . . . . . . . Damage (minor) 1 | . . . 1 . . . . . . . . . . . . . . . . . . . . . . . . . . . . . . . . . . Siege Activations . | . . . . . . . . . . . . . . . . . . . . . . . . . . . . . . . . . . . . . . Robots Corrupted 13 | . . . 1 1 1 5 . . . . . . . . . . . . . . . . . 5 . . . . . . . . . . . . . Combat Hostiles 7 | . . . 1 1 . 5 . . . . . . . . . . . . . . . . . . . . . . . . . . . . . . . Parts Fried 111 | . 4 . 7 20 19 37 . . . . . . . . . . . . . . 1 . . 20 . . . . . 1 . . . . . 2 . Impact Corruptions . | . . . . . . . . . . . . . . . . . . . . . . . . . . . . . . . . . . . . . . Robots Melted . | . . . . . . . . . . . . . . . . . . . . . . . . . . . . . . . . . . . . . . Combat Hostiles . | . . . . . . . . . . . . . . . . . . . . . . . . . . . . . . . . . . . . . . Parts Melted 6 | . . . 1 . . 2 . . . . . . . . . . . . . . . . . 1 . . . . . . . . . 2 . . . Heat Transferred 4178 | . 500 100 775 503 1400 900 . . . . . . . . . . . . . . . . . . . . . . . . . . . . . . . Parts Sabotaged 2 | . . . . . . . . . . . . . . . . . . . . . . . . . . . . . . . . . . . 2 . . Parts Stolen . | . . . . . . . . . . . . . . . . . . . . . . . . . . . . . . . . . . . . . . Parts Stripped . | . . . . . . . . . . . . . . . . . . . . . . . . . . . . . . . . . . . . . . Power Chain Reactions 53 | . 6 1 9 7 14 16 . . . . . . . . . . . . . . . . . . . . . . . . . . . . . . . Missiles Intercepted . | . . . . . . . . . . . . . . . . . . . . . . . . . . . . . . . . . . . . . . Alert | -11 -10 -10 -9 -9 -8 -7 -7 -7 -7 -7 -7 -6 -6 -6 -6 -6 -5 -5 -5 -5 -5 -5 -5 -5 -4 -4 -4 -4 -4 -3 -3 -2 -2 -2 -1 -1 -1 ------- Run | Scr Mat Min Mat Sto Mat Fac Was Fac Low Low Zio Pro Fac Low Low Dat Pro Fac Was Fac Ext Cet Arc Hub Fac Was Fac Arm Lab Res Tes Res Qua Sec Acc Com Ac0 Peak Influence 2364 | . 315 413 511 1181 841 1248 451 919 . . . . 739 . . . . 899 314 652 1048 640 412 2209 1841 1100 2364 1234 . 1409 882 1909 820 1663 2033 1812 . Average Influence 614 | . 148 272 304 542 543 747 435 522 . . . . 316 . . . . 564 301 297 518 409 376 853 1555 1100 1465 755 . 496 608 990 416 649 1778 1624 . Maximum Alert Level 5 | . 1 2 2 4 3 4 2 3 . . . . 3 . . . . 3 1 2 3 2 2 5 5 4 5 4 . 4 3 5 3 5 5 5 . Low Security (%) 11 | 100 74 27 27 25 . 2 . 1 . . . . 28 . . . . 13 . 23 16 26 . 8 . . . . . 17 4 . 1 1 . . . Level 1 22 | . 25 52 46 8 32 17 . 24 . . . . 55 . . . . 12 100 60 26 10 38 13 . . . 3 . 25 12 4 42 20 . . . Level 2 24 | . . 19 26 27 42 25 100 43 . . . . 6 . . . . 37 . 15 26 62 61 14 . . 9 33 . 26 32 21 54 37 . . . Level 3 21 | . . . . 34 25 36 . 29 . . . . 8 . . . . 37 . . 30 . . 41 12 . 10 56 . 27 50 27 . 37 4 . . Level 4 7 | . . . . 3 . 17 . . . . . . . . . . . . . . . . . 14 25 100 45 6 . 2 . 45 . . 2 10 . Level 5 10 | . . . . . . . . . . . . . . . . . . . . . . . . 6 55 . 16 . . . . 1 . . . 89 . High Security . | . . . . . . . . . . . . . . . . . . . . . . . . . 7 . 16 . . . . . . . . . . Max Security . | . . . . . . . . . . . . . . . . . . . . . . . . . . . . . . . . . . 3 93 . . Squads Dispatched 186 | . 5 . 6 11 6 15 . 14 . . . . 6 . 1 . . 19 . 10 2 . . 11 6 . 13 3 . 10 5 10 2 17 12 2 . Investigation 34 | . 4 . 2 3 1 3 . 3 . . . . 1 . . . . 11 . 3 . . . . 1 . . . . 1 1 . . . . . . Extermination 27 | . . . . . . 2 . 3 . . . . 3 . . . . 3 . 2 . . . 1 . . 1 2 . 3 1 3 1 2 . . . Reinforcement 42 | . 1 . 4 3 3 5 . 2 . . . . 1 . . . . . . 2 1 . . 4 1 . 5 1 . . 1 1 1 5 . 1 . Assault 49 | . . . . 4 1 4 . . . . . . 1 . 1 . . 2 . . 1 . . . 1 . 6 . . 3 2 3 . 7 12 1 . Garrison 34 | . . . . 1 1 1 . 6 . . . . . . . . . 3 . 3 . . . 6 3 . 1 . . 3 . 3 . 3 . . . Intercept . | . . . . . . . . . . . . . . . . . . . . . . . . . . . . . . . . . . . . . . Construction Impeded 6 | . . . . . . 1 . . . . . . . . . . . . . . 1 . . 2 . . 2 . . . . . . . . . . Haulers Reinforced 4 | . . . . . . 1 . . . . . . 1 . . . . . . . . . . . . . 1 . . . . . . 1 . . . Stealth | -11 -10 -10 -9 -9 -8 -7 -7 -7 -7 -7 -7 -6 -6 -6 -6 -6 -5 -5 -5 -5 -5 -5 -5 -5 -4 -4 -4 -4 -4 -3 -3 -2 -2 -2 -1 -1 -1 --------- Run | Scr Mat Min Mat Sto Mat Fac Was Fac Low Low Zio Pro Fac Low Low Dat Pro Fac Was Fac Ext Cet Arc Hub Fac Was Fac Arm Lab Res Tes Res Qua Sec Acc Com Ac0 Distress Signals 60 | . . . 2 1 6 . . 1 . . . . . . . . . 4 . 1 . 2 . 5 1 . 3 2 . 2 1 2 1 6 2 18 . Communications Jammed . | . . . . . . . . . . . . . . . . . . . . . . . . . . . . . . . . . . . . . . Distress Signals . | . . . . . . . . . . . . . . . . . . . . . . . . . . . . . . . . . . . . . . Times Spotted 1326 | . 25 11 54 55 47 78 4 45 16 23 . 10 38 17 21 4 19 88 5 38 22 17 4 48 14 . 58 35 . 99 20 82 21 90 31 102 85 Peak Tracking Total 29 | . 5 3 9 9 6 14 4 5 6 13 . 4 4 4 7 4 7 12 5 4 4 5 3 8 5 . 10 8 . 10 4 12 8 29 21 12 5 Tactical Retreats 38 | . 2 1 1 . 5 3 . 1 . . . . . 1 1 . . . . 1 . . . . . . . 4 . 5 1 1 . 3 7 1 . Traps | -11 -10 -10 -9 -9 -8 -7 -7 -7 -7 -7 -7 -6 -6 -6 -6 -6 -5 -5 -5 -5 -5 -5 -5 -5 -4 -4 -4 -4 -4 -3 -3 -2 -2 -2 -1 -1 -1 ------- Run | Scr Mat Min Mat Sto Mat Fac Was Fac Low Low Zio Pro Fac Low Low Dat Pro Fac Was Fac Ext Cet Arc Hub Fac Was Fac Arm Lab Res Tes Res Qua Sec Acc Com Ac0 Traps Triggered 21 | . 3 . . . 3 1 . . . . . . . . . . . 1 . . . . . 1 1 . 2 . . 1 . . 1 3 . 4 . Indirectly 1 | . . . . . . . . . . . . . . . . . . . . . . . . 1 . . . . . . . . . . . . . Trap Hack Attempts . | . . . . . . . . . . . . . . . . . . . . . . . . . . . . . . . . . . . . . . Triggered . | . . . . . . . . . . . . . . . . . . . . . . . . . . . . . . . . . . . . . . Disarmed . | . . . . . . . . . . . . . . . . . . . . . . . . . . . . . . . . . . . . . . Reprogrammed 6 | . . . . . . . . . . . . . . . . . . . . . . . . . . . . 6 . . . . . . . . . Reused . | . . . . . . . . . . . . . . . . . . . . . . . . . . . . . . . . . . . . . . Traps Extracted . | . . . . . . . . . . . . . . . . . . . . . . . . . . . . . . . . . . . . . . Installed . | . . . . . . . . . . . . . . . . . . . . . . . . . . . . . . . . . . . . . . Triggered 7 | . . . . . . 1 . . 4 . . 1 . 1 . . . . . . . . . . . . . . . . . . . . . . . Machines | -11 -10 -10 -9 -9 -8 -7 -7 -7 -7 -7 -7 -6 -6 -6 -6 -6 -5 -5 -5 -5 -5 -5 -5 -5 -4 -4 -4 -4 -4 -3 -3 -2 -2 -2 -1 -1 -1 ---------- Run | Scr Mat Min Mat Sto Mat Fac Was Fac Low Low Zio Pro Fac Low Low Dat Pro Fac Was Fac Ext Cet Arc Hub Fac Was Fac Arm Lab Res Tes Res Qua Sec Acc Com Ac0 Machines Disabled 105 | . 1 1 . 7 3 2 . . 2 1 . . . . . . . . . . 3 2 1 30 12 . 13 4 . . 4 . 1 7 1 6 4 Max in Single Turn 16 | . 1 . . 2 2 1 . . 1 1 . . . . . . . . . . . . . 16 . . . 1 . . 1 . 1 1 . 2 1 Garrison Access 11 | . . . . 1 1 1 . . . . . . 1 . . . . 1 . . . . . 2 . . 1 . . 1 . 1 1 . . . . Phase Generator 1 | . . . . . . . . . . . . . . . . . . . . . . . . . . . . . . . . . . . . 1 . Network Hub 3 | . . . . . . . . . . . . . . . . . . . . . . . . 3 . . . . . . . . . . . . . Machines Sabotaged . | . . . . . . . . . . . . . . . . . . . . . . . . . . . . . . . . . . . . . . Garrisons Compromised . | . . . . . . . . . . . . . . . . . . . . . . . . . . . . . . . . . . . . . . Overloaded Fab Kills . | . . . . . . . . . . . . . . . . . . . . . . . . . . . . . . . . . . . . . . Fab Network Shutdowns 8 | . . . . . . 1 . . . . . . 1 . . . . . . 1 . . . . . . 1 1 . 1 1 1 . . . . . Hacking | -11 -10 -10 -9 -9 -8 -7 -7 -7 -7 -7 -7 -6 -6 -6 -6 -6 -5 -5 -5 -5 -5 -5 -5 -5 -4 -4 -4 -4 -4 -3 -3 -2 -2 -2 -1 -1 -1 --------- Run | Scr Mat Min Mat Sto Mat Fac Was Fac Low Low Zio Pro Fac Low Low Dat Pro Fac Was Fac Ext Cet Arc Hub Fac Was Fac Arm Lab Res Tes Res Qua Sec Acc Com Ac0 Machines Accessed 292 | . 6 1 8 11 8 18 . 22 2 3 1 . 28 . . 4 . 25 . 15 16 2 . 12 4 . 9 10 . 23 11 15 15 17 2 4 . Terminals 219 | . 6 1 8 9 7 13 . 15 1 1 . . 19 . . . . 16 . 11 16 2 . 10 3 . 6 8 . 14 9 8 14 16 2 4 . Fabricators 26 | . . . . . . 3 . 3 . . . . 4 . . . . 5 . 2 . . . . . . 2 2 . 2 1 2 . . . . . Repair Stations 2 | . . . . . . . . . . . . . . . . . . . . . . . . . . . . . . 2 . . . . . . . Recycling Units 3 | . . . . 1 . . . . . . . . . . . . . . . . . . . . . . . . . . . 2 . . . . . Scanalyzers 3 | . . . . . . 1 . . . . . . 1 . . . . . . . . . . . . . . . . 1 . . . . . . . Garrison Access 31 | . . . . 1 1 1 . 4 . . . . 4 . . . . 4 . 2 . . . 2 1 . 1 . . 4 1 3 1 1 . . . Total Hacks 1821 | . 39 6 48 84 41 76 . 133 13 20 2 . 135 . . 25 . 126 . 85 79 19 . 67 31 . 66 106 . 180 107 109 70 113 16 25 . Successful 1161 | . 18 4 29 53 27 45 . 72 12 17 2 . 93 . . 25 . 78 . 54 44 15 . 43 20 . 37 60 . 103 72 76 61 73 12 16 . Failed 655 | . 20 2 19 30 14 31 . 60 1 3 . . 42 . . . . 47 . 30 35 4 . 24 11 . 29 46 . 77 35 33 9 40 4 9 . Catastrophic 101 | . 1 . 2 2 3 6 . 7 1 . . . 7 . . . . 9 . 5 10 . . 1 2 . 4 10 . 18 7 2 . 3 . 1 . Database Lockouts 8 | . 1 . . 3 . . . 1 . . . . . . . . . 1 . 2 . . . . . . . . . . . . . . . . . Manual 1123 | . 27 6 34 76 32 33 . 77 3 5 4 . 86 . . . . 76 . 60 61 12 . 53 21 . 31 69 . 84 70 72 52 53 7 19 . Terminals 1481 | . 39 6 48 73 39 59 . 97 12 13 . . 95 . . . . 85 . 61 79 19 . 55 23 . 58 94 . 142 92 76 66 109 16 25 . Fabricators 164 | . . . . . . 12 . 17 . . . . 27 . . . . 28 . 16 . . . . . . 7 12 . 14 13 18 . . . . . Repair Stations 6 | . . . . . . . . . . . . . . . . . . . . . . . . . . . . . . 6 . . . . . . . Recycling Units 12 | . . . . 4 . . . . . . . . . . . . . . . . . . . . . . . . . . . 8 . . . . . Scanalyzers 11 | . . . . . . 2 . . . . . . 2 . . . . . . . . . . . . . . . . 7 . . . . . . . Garrison Access 112 | . . . . 7 2 3 . 19 . . . . 11 . . . . 13 . 8 . . . 12 8 . 1 . . 11 2 7 4 4 . . . Terminal Hacks 645 | . 13 4 19 34 15 22 . 34 11 16 2 . 42 . . 25 . 36 . 29 32 10 . 17 8 . 17 31 . 51 45 31 38 45 8 10 . Record 54 | . . . . . 1 . . . 9 14 . . . . . 11 . . . . . 5 . . . . . . . 3 3 1 6 1 . . . Part Schematic 78 | . . . . . . 3 . 7 . . 2 . 8 . . 7 . 7 . 3 9 . . 3 . . 1 1 . 10 9 6 . 2 . . . Robot Schematic 22 | . . . . . . 1 . . . . . . . . . 4 . 4 . . 1 . . . . . 1 4 . 1 . . 3 3 . . . Robot Analysis 27 | . . . . . 1 2 . 3 . . . . 1 . . . . 2 . . . . . . 2 . 1 1 . 5 3 1 1 2 1 1 . Prototype ID Bank 72 | . 5 4 7 12 . 1 . 2 . . . . 9 . . 3 . 3 . 1 . . . . . . 1 1 . 3 3 2 10 5 . . . Open Door 21 | . . . . 3 . . . . 1 1 . . . . . . . . . . 8 1 . . . . . . . . 1 1 1 3 . 1 . Level Access Points 19 | . 2 . 1 1 1 . . 1 . . . . . . . . . 1 . 1 1 . . 1 2 . . 1 . 1 1 1 1 1 1 . . Branch Access Points 23 | . 1 . 1 . 1 1 . 1 1 1 . . 1 . . . . 1 . 1 1 . . 1 1 . 1 1 . 1 2 1 1 1 1 1 . Machine Index 9 | . . . . . . 1 . 1 . . . . . . . . . . . . 1 . . 1 . . . 1 . 1 . 1 1 . 1 . . Terminal Index 16 | . 1 . 1 1 1 1 . 2 . . . . 1 . . . . . . 1 1 . . 1 1 . 1 . . . 1 . 1 1 . . . Fabricator Index 8 | . . . . . . . . . . . . . 1 . . . . . . 1 . . . . 1 . . . . 1 2 . . 1 . 1 . Repair Station Index 2 | . . . . . . . . . . . . . . . . . . . . . . . . . . . 1 . . . 1 . . . . . . Recycling Unit Index 1 | . . . . . . . . . . . . . 1 . . . . . . . . . . . . . . . . . . . . . . . . Scanalyzer Index 3 | . . . . . . . . . . . . . 1 . . . . . . 1 . . . . . . . . . . 1 . . . . . . Garrison Index 4 | . . . . . . . . . . . . . 1 . . . . . . 1 . . . . . . . . . 1 1 . . . . . . Alert Level 80 | . 1 . 3 2 1 1 . 6 . . . . 9 . . . . 2 . 6 4 2 . 4 . . 2 5 . 9 4 3 5 7 2 2 . Unreport Threat 114 | . . . 6 5 5 4 . 8 . . . . 4 . . . . 9 . 7 5 2 . 5 1 . 4 8 . 9 6 9 5 7 2 3 . Locate Traps 2 | . . . . . . . . . . . . . . . . . . 1 . . . . . . . . . 1 . . . . . . . . . Reprogram Traps 1 | . . . . . . . . . . . . . . . . . . . . . . . . . . . . 1 . . . . . . . . . Dispatch Records 3 | . . . . 1 1 . . . . . . . . . . . . . . . . . . . . . . 1 . . . . . . . . . Maintenance Status 2 | . . . . . . . . . . . . . . . . . . . . . . . . . . . 1 . . . . 1 . . . . . Security Status 4 | . . . . 2 . . . . . . . . . . . . . 1 . . . . . . . . . 1 . . . . . . . . . Surveillance Status 2 | . . . . . . . . . . . . . . . . . . . . . . . . . . . . 1 . 1 . . . . . . . Patrol Status 2 | . . . . 1 . . . . . . . . . . . . . . . . . . . . . . 1 . . . . . . . . . . Transport Status 1 | . . . . 1 . . . . . . . . . . . . . . . . . . . . . . . . . . . . . . . . . Extermination Status 1 | . . . . . . . . . . . . . . . . . . . . . . . . . . . . . . . . . . 1 . . . Recall Investigation 10 | . 1 . . 2 . . . . . . . . . . . . . 2 . 2 . . . . . . . . . . 2 . . 1 . . . Recall Extermination 7 | . . . . . . . . . . . . . 1 . . . . 1 . 1 . . . . . . . 1 . . . 1 . 2 . . . Recall Reinforcements 9 | . 1 . . . . 2 . . . . . . . . . . . . . . . . . . . . . 2 . . . . 1 2 . 1 . Recall Assault 3 | . . . . . . 1 . . . . . . . . . . . . . . 1 . . . . . . . . . 1 . . . . . . Hauler Manifests 21 | . 1 . . 1 1 2 . 1 . . . . 2 . . . . 1 . 2 . . . 1 . . 1 . . 2 2 1 1 2 . . . Registered Components 10 | . . . . 1 1 1 . 1 . . . . 1 . . . . . . 1 . . . . . . . . . 1 . 1 1 1 . . . Registered Prototypes 9 | . . . . 1 . 1 . 1 . . . . 1 . . . . 1 . . . . . . . . 1 . . 1 . 1 . 1 . . . Zone Layout 2 | . . . . . 1 . . . . . . . . . . . . . . . . . . . . . . . . 1 . . . . . . . Protovariant Controls 2 | . . . . . . . . . . . . . . . . . . . . . . . . . . . . . . . 2 . . . . . . Activate Exoskeleton 1 | . . . . . . . . . . . . . . . . . . . . . . . . . . . . . . . . . . 1 . . . Fabricator Hacks 106 | . . . . . . 8 . 11 . . . . 19 . . . . 16 . 10 . . . . . . 5 9 . 10 8 10 . . . . . Load Schematic 49 | . . . . . . 3 . 5 . . . . 9 . . . . 8 . 6 . . . . . . 2 4 . 4 4 4 . . . . . Build 57 | . . . . . . 5 . 6 . . . . 10 . . . . 8 . 4 . . . . . . 3 5 . 6 4 6 . . . . . Repair Station Hacks 4 | . . . . . . . . . . . . . . . . . . . . . . . . . . . . . . 4 . . . . . . . Scan Component 2 | . . . . . . . . . . . . . . . . . . . . . . . . . . . . . . 2 . . . . . . . Repair 2 | . . . . . . . . . . . . . . . . . . . . . . . . . . . . . . 2 . . . . . . . Recycling Unit Hacks 3 | . . . . 1 . . . . . . . . . . . . . . . . . . . . . . . . . . . 2 . . . . . Report Inventory 3 | . . . . 1 . . . . . . . . . . . . . . . . . . . . . . . . . . . 2 . . . . . Scanalyzer 9 | . . . . . . 2 . . . . . . 2 . . . . . . . . . . . . . . . . 5 . . . . . . . Insert Component 3 | . . . . . . 1 . . . . . . 1 . . . . . . . . . . . . . . . . 1 . . . . . . . Analyze 6 | . . . . . . 1 . . . . . . 1 . . . . . . . . . . . . . . . . 4 . . . . . . . Garrison Access Hacks 6 | . . . . 1 . 1 . . . . . . . . . . . 1 . . . . . 2 . . . . . . . . 1 . . . . Seal Access 6 | . . . . 1 . 1 . . . . . . . . . . . 1 . . . . . 2 . . . . . . . . 1 . . . . Unauthorized Hacks 880 | . 12 . 23 40 24 32 . 69 2 2 . . 67 . . . . 57 . 37 24 12 . 55 28 . 35 45 . 72 41 69 48 63 10 13 . Terminals 281 | . 5 . 10 12 10 9 . 12 1 1 . . 19 . . . . 12 . 9 12 5 . 20 8 . 12 18 . 21 14 15 21 25 4 6 . Track 123 | . 2 . 5 5 4 3 . 5 1 1 . . 10 . . . . 3 . 5 6 2 . 6 3 . 4 7 . 10 8 5 12 12 2 2 . Assimilate 32 | . . . 1 1 1 2 . 2 . . . . 5 . . . . 4 . 1 . . . 6 . . 1 1 . 1 2 2 . 2 . . . Botnet 73 | . 3 . 3 4 3 3 . 3 . . . . 3 . . . . 3 . 3 3 2 . 3 3 . 3 5 . 5 3 4 5 4 2 3 . Disrupt 31 | . . . . 1 1 1 . . . . . . . . . . . 1 . . 2 . . 3 1 . 1 4 . 4 . 2 3 6 . 1 . Operators 22 | . . . 1 1 1 . . 2 . . . . 1 . . . . 1 . . 1 1 . 2 1 . 3 1 . 1 1 2 1 1 . . . Fabricators 34 | . . . . . . 2 . 3 . . . . 5 . . . . 5 . 3 . . . . . . 2 2 . 3 3 6 . . . . . Report 9 | . . . . . . . . 1 . . . . 1 . . . . 1 . 1 . . . . . . . 1 . 1 1 2 . . . . . Prioritize 11 | . . . . . . 1 . 1 . . . . 1 . . . . 1 . 1 . . . . . . 1 1 . 1 1 2 . . . . . Siphon 10 | . . . . . . . . 1 . . . . 2 . . . . 2 . 1 . . . . . . 1 . . 1 1 1 . . . . . Haulers 3 | . . . . . . . . . . . . . 1 . . . . 1 . . . . . . . . . . . . . 1 . . . . . Download 1 | . . . . . . 1 . . . . . . . . . . . . . . . . . . . . . . . . . . . . . . . Repair Stations 1 | . . . . . . . . . . . . . . . . . . . . . . . . . . . . . . 1 . . . . . . . Mechanics 1 | . . . . . . . . . . . . . . . . . . . . . . . . . . . . . . 1 . . . . . . . Recycling Units 8 | . . . . 2 . . . . . . . . . . . . . . . . . . . . . . . . . . . 6 . . . . . Monitor 2 | . . . . . . . . . . . . . . . . . . . . . . . . . . . . . . . . 2 . . . . . Reject 3 | . . . . 1 . . . . . . . . . . . . . . . . . . . . . . . . . . . 2 . . . . . Mask 3 | . . . . 1 . . . . . . . . . . . . . . . . . . . . . . . . . . . 2 . . . . . Scanalyzers . | . . . . . . . . . . . . . . . . . . . . . . . . . . . . . . . . . . . . . . Garrison Access 63 | . . . . 3 2 1 . 12 . . . . 6 . . . . 8 . 3 . . . 4 3 . 1 . . 8 2 6 1 3 . . . Reprogram 51 | . . . . 3 1 . . 11 . . . . 4 . . . . 7 . 3 . . . 3 2 . 1 . . 7 1 5 . 3 . . . Watchers 12 | . . . . . 1 1 . 1 . . . . 2 . . . . 1 . . . . . 1 1 . . . . 1 1 1 1 . . . . Data Cores Recovered 1 | . . . . . . . . . . . . . . . . . . . . . . . . . . . . . . . . . . . . 1 . Used . | . . . . . . . . . . . . . . . . . . . . . . . . . . . . . . . . . . . . . . Hacking Detections 219 | . 6 1 8 10 8 17 . 20 1 1 . . 21 . . . . 23 . 11 12 1 . 8 4 . 6 6 . 16 5 8 10 11 2 3 . Full Trace Events 27 | . 1 1 2 4 1 1 . 1 1 . . . 1 . . . . 10 . 2 . . . . . . . . . 1 1 . . . . . . Feedback Events 6 | . . . . 1 . . . . . . . . . . . . . 4 . 1 . . . . . . . . . . . . . . . . . Corruption 3 | . . . . 1 . . . . . . . . . . . . . 2 . . . . . . . . . . . . . . . . . . . Hackware Fried 3 | . . . . . . . . . . . . . . . . . . 2 . 1 . . . . . . . . . . . . . . . . . Feedback Blocked . | . . . . . . . . . . . . . . . . . . . . . . . . . . . . . . . . . . . . . . Robot Schematics Acquired 22 | . . . . . . 1 . . . . . . . . . 4 . 4 . . 1 . . . . . 1 4 . 1 . . 3 3 . . . Robots Built 5 | . . . . . . . . . . . . . . . . . . 5 . . . . . . . . . . . . . . . . . . . Matter 504 | . . . . . . . . . . . . . . . . . . 504 . . . . . . . . . . . . . . . . . . . Time 134 | . . . . . . . . . . . . . . . . . . 134 . . . . . . . . . . . . . . . . . . . Total Robot Build Rating 20 | . . . . . . . . . . . . . . . . . . 20 . . . . . . . . . . . . . . . . . . . Part Schematics Acquired 74 | . . . . . . 5 . 6 . . 2 . 7 . . 7 . 7 . 2 8 . . 3 . . 1 1 . 10 8 5 . 2 . . . Parts Built 46 | . . . . . . 6 . 6 . . . . 8 . . . . 4 . 5 . . . . . . 1 5 . 3 4 4 . . . . . Matter 9804 | . . . . . . 906 . 880 . . . . 1121 . . . . 965 . 1159 . . . . . . 256 1309 . 1112 984 1112 . . . . . Time 2038 | . . . . . . 173 . 262 . . . . 264 . . . . 229 . 299 . . . . . . 64 202 . 235 139 171 . . . . . Total Part Build Rating 306 | . . . . . . 28 . 28 . . . . 45 . . . . 28 . 36 . . . . . . 8 37 . 27 33 36 . . . . . Parts Repaired 2 | . . . . . . . . . . . . . . . . . . . . . . . . . . . . . . 2 . . . . . . . Time 101 | . . . . . . . . . . . . . . . . . . . . . . . . . . . . . . 101 . . . . . . . Parts Recycled . | . . . . . . . . . . . . . . . . . . . . . . . . . . . . . . . . . . . . . . Recycled Matter . | . . . . . . . . . . . . . . . . . . . . . . . . . . . . . . . . . . . . . . Retrieved Matter . | . . . . . . . . . . . . . . . . . . . . . . . . . . . . . . . . . . . . . . Retrieved Components . | . . . . . . . . . . . . . . . . . . . . . . . . . . . . . . . . . . . . . . Parts Scanalyzed 3 | . . . . . . 1 . . . . . . 1 . . . . . . . . . . . . . . . . 1 . . . . . . . Part Schematics Acquired 3 | . . . . . . 1 . . . . . . 1 . . . . . . . . . . . . . . . . 1 . . . . . . . Parts Damaged 1 | . . . . . . . . . . . . . . . . . . . . . . . . . . . . . . 1 . . . . . . . Bothacking | -11 -10 -10 -9 -9 -8 -7 -7 -7 -7 -7 -7 -6 -6 -6 -6 -6 -5 -5 -5 -5 -5 -5 -5 -5 -4 -4 -4 -4 -4 -3 -3 -2 -2 -2 -1 -1 -1 ------------ Run | Scr Mat Min Mat Sto Mat Fac Was Fac Low Low Zio Pro Fac Low Low Dat Pro Fac Was Fac Ext Cet Arc Hub Fac Was Fac Arm Lab Res Tes Res Qua Sec Acc Com Ac0 Used RIF Installer . | . . . . . . . . . . . . . . . . . . . . . . . . . . . . . . . . . . . . . . Robots Hacked . | . . . . . . . . . . . . . . . . . . . . . . . . . . . . . . . . . . . . . . Non-combat . | . . . . . . . . . . . . . . . . . . . . . . . . . . . . . . . . . . . . . . Combat . | . . . . . . . . . . . . . . . . . . . . . . . . . . . . . . . . . . . . . . Robot Hacks Applied . | . . . . . . . . . . . . . . . . . . . . . . . . . . . . . . . . . . . . . . Relay Couplers Released 5 | . . . . . 1 . . . . . . . 1 . . . . . . . . . . . . . . . . 2 . 1 . . . . . Machine Destruction 3 | . . . . . 1 . . . . . . . 1 . . . . . . . . . . . . . . . . . . 1 . . . . . Programmers 2 | . . . . . . . . . . . . . . . . . . . . . . . . . . . . . . 2 . . . . . . . Robots Rewired 9 | . . . . . . . . . . . . . . . 1 . 2 . . . 5 . . . 1 . . . . . . . . . . . . Allies Hacked 5 | . . . . . . . . 1 1 . . . . . . . . . . . . 1 . 1 . . . . . 1 . . . . . . . Hacks Repelled . | . . . . . . . . . . . . . . . . . . . . . . . . . . . . . . . . . . . . . . Allies | -11 -10 -10 -9 -9 -8 -7 -7 -7 -7 -7 -7 -6 -6 -6 -6 -6 -5 -5 -5 -5 -5 -5 -5 -5 -4 -4 -4 -4 -4 -3 -3 -2 -2 -2 -1 -1 -1 -------- Run | Scr Mat Min Mat Sto Mat Fac Was Fac Low Low Zio Pro Fac Low Low Dat Pro Fac Was Fac Ext Cet Arc Hub Fac Was Fac Arm Lab Res Tes Res Qua Sec Acc Com Ac0 Total Allies 179 | . . 5 1 8 1 2 . 18 1 . 3 . 6 . 1 . 2 23 . 10 17 5 . 13 4 20 1 . . 9 3 9 . 9 . 8 . Largest Group 23 | . . 5 5 8 8 3 . 12 10 8 11 9 8 1 1 1 2 10 5 5 22 23 20 22 8 20 20 . . 6 2 8 3 6 1 9 7 Highest-Rated Group 1189 | . . 80 80 112 112 59 . 230 184 130 200 167 150 40 20 20 58 236 162 142 794 1111 938 879 455 776 776 . . 265 70 323 100 1144 1075 1189 1162 Highest-Rated Ally 1075 | . . 31 26 31 31 26 . 38 38 21 25 25 41 40 20 20 29 41 41 29 156 156 134 94 94 50 50 . . 90 44 69 44 1075 1075 1075 1075 Total Orders 153 | . . . 11 13 4 17 . 4 . . . . 12 . . . . 22 . 4 7 . . 15 . . . . . 2 10 18 5 9 . . . STAY 15 | . . . 4 . . 1 . . . . . . 2 . . . . 3 . . . . . . . . . . . . 1 2 1 1 . . . GOTO 68 | . . . 1 6 2 8 . 2 . . . . 5 . . . . 9 . 2 5 . . 10 . . . . . . 4 8 2 4 . . . FOLLOW 68 | . . . 6 7 2 8 . 2 . . . . 5 . . . . 10 . 2 2 . . 5 . . . . . . 5 8 2 4 . . . EXPLORE 2 | . . . . . . . . . . . . . . . . . . . . . . . . . . . . . . 2 . . . . . . . Ally Attacks 1231 | . . 15 22 38 46 . . 16 25 34 . 21 35 1 . . 6 85 23 38 59 102 30 132 11 . 150 . . 27 . 55 9 27 18 93 113 Total Damage 33937 | . . 210 259 645 339 . . 606 600 439 . 380 743 44 . . 76 1400 449 611 1221 2405 550 2429 1432 . 5629 . . 658 . 1648 153 1223 803 4880 4105 Kills 181 | . . 4 5 10 3 . . 8 6 4 . 2 11 . . . 1 8 1 3 14 14 3 14 5 . 24 . . 3 . 6 2 2 4 20 4 Allies Corrupted 9 | . . . . . . . . . . . . . . . . . . . . . . . . 7 . . . . . . . 1 . 1 . . . Allies Melted 1 | . . . . . . . . . . . . . . . . . . . . . . . . . . . 1 . . . . . . . . . . Intel | -11 -10 -10 -9 -9 -8 -7 -7 -7 -7 -7 -7 -6 -6 -6 -6 -6 -5 -5 -5 -5 -5 -5 -5 -5 -4 -4 -4 -4 -4 -3 -3 -2 -2 -2 -1 -1 -1 ------- Run | Scr Mat Min Mat Sto Mat Fac Was Fac Low Low Zio Pro Fac Low Low Dat Pro Fac Was Fac Ext Cet Arc Hub Fac Was Fac Arm Lab Res Tes Res Qua Sec Acc Com Ac0 Robot Analysis Total 27 | . . . . . 1 2 . 3 . . . . 1 . . . . 2 . . . . . . 2 . 1 1 . 5 3 1 1 2 1 1 . Derelict Logs Recovered 17 | . . 2 . . . . . . 2 1 1 3 . 3 2 . 3 . . . . . . . . . . . . . . . . . . . . Drone Launches 14 | . . . . . . . . . . . . . . . . . . . . . 12 . . . . . . . . 2 . . . . . . . Drone Recoveries . | . . . . . . . . . . . . . . . . . . . . . . . . . . . . . . . . . . . . . . Exploration | -11 -10 -10 -9 -9 -8 -7 -7 -7 -7 -7 -7 -6 -6 -6 -6 -6 -5 -5 -5 -5 -5 -5 -5 -5 -4 -4 -4 -4 -4 -3 -3 -2 -2 -2 -1 -1 -1 ------------- Run | Scr Mat Min Mat Sto Mat Fac Was Fac Low Low Zio Pro Fac Low Low Dat Pro Fac Was Fac Ext Cet Arc Hub Fac Was Fac Arm Lab Res Tes Res Qua Sec Acc Com Ac0 Turns Passed 29680 | 15 587 416 931 702 731 2186 22 1752 683 463 584 503 2021 774 459 33 537 2116 70 1139 591 536 84 571 306 125 881 935 14 1739 969 1042 610 994 171 2372 1016 Spaces Moved 45619 | 30 737 682 1150 940 1119 2755 68 3100 1165 854 827 879 2960 1032 883 99 938 3107 143 1301 915 568 119 1145 615 229 1190 919 27 2557 1242 1722 1390 1766 389 4336 1721 Core 275 | 30 243 . . . . . . . . . . . . . . . . . . . 1 . . . . . . . . . . . . . . . 1 Treads . | . . . . . . . . . . . . . . . . . . . . . . . . . . . . . . . . . . . . . . Legs . | . . . . . . . . . . . . . . . . . . . . . . . . . . . . . . . . . . . . . . Wheels . | . . . . . . . . . . . . . . . . . . . . . . . . . . . . . . . . . . . . . . Hover . | . . . . . . . . . . . . . . . . . . . . . . . . . . . . . . . . . . . . . . Flight 45344 | . 494 682 1150 940 1119 2755 68 3100 1165 854 827 879 2960 1032 883 99 938 3107 143 1301 914 568 119 1145 615 229 1190 919 27 2557 1242 1722 1390 1766 389 4336 1720 Fastest Speed 26 | 50 40 37 37 32 32 29 29 29 32 32 32 32 26 32 32 26 32 26 26 26 26 32 32 26 32 32 26 26 37 27 29 29 29 27 29 27 27 Average Speed 31 | 50 43 38 37 34 32 31 29 31 32 32 32 32 31 32 32 31 32 31 30 31 31 32 32 31 32 32 31 34 37 30 29 29 29 28 29 29 30 Slowest Speed 100 | 50 100 40 37 37 32 32 32 32 32 32 32 32 32 32 32 32 35 32 32 32 100 32 32 32 32 32 32 37 37 40 29 29 100 29 29 100 100 Overloaded Moves 450 | . . . . . . 14 53 34 . . . . 4 . . 14 . 49 30 28 27 . . 65 . . 40 22 . 7 . . . 17 . 39 7 Propulsion Burnouts . | . . . . . . . . . . . . . . . . . . . . . . . . . . . . . . . . . . . . . . Robots Hopped 255 | . 12 6 23 18 19 24 . 30 . . . . 8 . . . . 8 . 12 1 . . 27 4 . 2 . . 24 11 6 2 14 3 . 1 Cave-ins Triggered 6 | . . . . . . . . . . . . . . . . . . . . . . 1 . . . . . . . . . . . . . 5 . Teleports 1 | . . . . . . . . . . . . . . . . . . . . . . . . . . . . . . . . . . . . 1 . Exploration Rate (%) 73 | 4 97 98 92 87 80 67 72 73 98 92 83 97 67 92 94 69 98 68 83 26 85 94 89 91 22 89 39 58 5 84 91 38 94 90 18 91 64 Regions Visited 37 Branch Regions 21 Pre-discovered Areas 5 | . . 1 . 1 . . . . 1 . . . . . 1 1 . . . . . . . . . . . . . . . . . . . . . Known Exits Taken 22 | . 1 1 1 1 1 . . 1 1 1 . 1 1 1 . . 1 . . 1 1 . . 1 . . 1 . 1 1 1 1 . 1 1 . . Unknown Exits Taken 9 | 1 . . . . . . . . . . 1 . . . 1 1 . . . . . 1 1 . . . . 1 . . . . 1 . . 1 . Scrap Searched 29 | . . 2 . . . . . . 3 4 3 3 . 7 4 . 3 . . . . . . . . . . . . . . . . . . . . Spaces Dug 299 | . . . . . . 3 . 17 2 1 . 5 42 . . . . 24 . 8 4 6 4 7 . . 16 31 . 40 15 5 5 14 5 44 1 Terrain Destroyed 1079 | . 11 2 30 22 66 102 . 17 2 1 . 5 42 . . . . 24 . 8 4 6 4 487 . . 16 31 . 40 15 5 5 14 5 114 1 Melee 299 | . . . . . . 3 . 17 2 1 . 5 42 . . . . 24 . 8 4 6 4 7 . . 16 31 . 40 15 5 5 14 5 44 1 Projectile . | . . . . . . . . . . . . . . . . . . . . . . . . . . . . . . . . . . . . . . AOE 780 | . 11 2 30 22 66 99 . . . . . . . . . . . . . . . . . 480 . . . . . . . . . . . 70 . Actions | -11 -10 -10 -9 -9 -8 -7 -7 -7 -7 -7 -7 -6 -6 -6 -6 -6 -5 -5 -5 -5 -5 -5 -5 -5 -4 -4 -4 -4 -4 -3 -3 -2 -2 -2 -1 -1 -1 --------- Run | Scr Mat Min Mat Sto Mat Fac Was Fac Low Low Zio Pro Fac Low Low Dat Pro Fac Was Fac Ext Cet Arc Hub Fac Was Fac Arm Lab Res Tes Res Qua Sec Acc Com Ac0 Total 57802 | 29 911 808 1459 1163 1324 3820 69 3632 1438 996 1145 1061 3852 1440 995 99 1136 4030 168 1936 1173 891 155 1257 701 275 1598 1439 28 3261 1771 2131 1569 2160 431 5345 2106 Wait 8240 | . 128 91 140 134 99 825 2 376 215 73 314 142 720 362 50 . 148 643 26 546 163 284 23 50 38 25 238 398 . 405 419 232 99 143 6 628 55 Move 45100 | 29 714 670 1105 904 1084 2708 67 3041 1164 853 826 878 2945 1031 882 98 937 3091 142 1276 912 567 118 1098 608 228 1185 918 26 2511 1221 1709 1385 1738 382 4330 1719 Hop 225 | . 10 5 21 17 15 23 . 28 . . . . 6 . . . . 8 . 12 1 . . 19 3 . 2 . . 21 9 6 2 13 3 . 1 Pick Up 75 | . . . 1 1 4 10 . 4 4 2 . 1 8 . . . 1 3 . 1 . . . . 2 1 . . . 4 1 3 2 2 1 9 10 Fast Attach 323 | . 4 1 12 4 7 21 . 12 2 . 3 . 13 . 1 . 2 10 . 4 . . . 3 4 2 6 9 . 14 27 7 16 45 5 50 39 Attach 20 | . . . . . . 10 . 2 . . . 1 . . . . . 3 . . . . . . . 1 . . . . 1 . . 1 . 1 . Detach 11 | . . . . . . 4 . . . . . . . . . . . 3 . . . . . . . 1 . . . 1 1 1 . . . . . Swap 79 | . . 1 5 4 3 3 . 4 . . . 2 7 3 . . 1 10 . 2 3 2 . . 1 1 3 4 . 13 5 1 . . . 1 . Drop 341 | . . 1 8 2 7 26 . 16 3 2 2 . 21 . . . 3 11 . 3 . . . 2 7 4 4 9 . 18 29 11 16 34 4 54 44 Fire 380 | . 43 23 114 52 60 81 . . . . . . . . . . . . . . . . . 7 . . . . . . . . . . . . . Melee 1672 | . . . . 3 . 13 . 91 25 34 . 20 113 21 40 1 25 152 . 67 32 25 8 53 22 8 75 76 2 172 47 98 33 98 18 156 144 Ram . | . . . . . . . . . . . . . . . . . . . . . . . . . . . . . . . . . . . . . . Kick . | . . . . . . . . . . . . . . . . . . . . . . . . . . . . . . . . . . . . . . Crush . | . . . . . . . . . . . . . . . . . . . . . . . . . . . . . . . . . . . . . . Escape Stasis 110 | . . . . . . . . . . . . . . . . . . . . . . . . . . . 36 . . . . . . 43 . 31 . Rewire 55 | . . . . . . . . . 1 . . . . . 6 . 5 . . . 39 . . 1 3 . . . . . . . . . . . . Trap . | . . . . . . . . . . . . . . . . . . . . . . . . . . . . . . . . . . . . . . Miscellaneous 1171 | . 12 16 53 42 45 96 . 58 24 32 . 17 19 23 16 . 14 96 . 25 23 13 6 24 13 4 49 25 . 102 11 63 16 43 12 85 94 Route ------- -11/Scrapyard -10/Materials (discovered 4 exits: *Mat x3 / *Min) -10/Mines (discovered 2 exits: *Mat x2) -9/Materials (discovered 7 exits: *Mat x3 / *Min x2 / *Sto x2) -9/Storage -8/Materials (discovered 3 exits: *Fac x3) -7/Factory (discovered 6 exits: *Fac x4 / *Low x2) -7/Waste -7/Factory (discovered 6 exits: *Fac x4 / *Low x2) -7/Lower Caves -7/Lower Caves (discovered 2 exits: *Fac / *Zio) -7/Zion (discovered 2 exits: [*Dee] / [*Pro]) -6/Proximity Caves -6/Factory (discovered 5 exits: *Fac x3 / *Low x2) -6/Lower Caves -6/Lower Caves (discovered 2 exits: *Fac / *Dat) -6/Data Miner -5/Proximity Caves -5/Factory (discovered 8 exits: *Fac x4 / *Upp x2 / *Ext x2) -5/Waste -5/Factory (discovered 8 exits: Fac x4 / *Upp x2 / *Ext x2) -5/Extension (discovered 3 exits: *Fac x2 / *Cet) -5/Cetus (discovered 3 exits: *Fac x2 / *Arc) -5/Archives (discovered 3 exits: *Fac / *Hub x2) -5/Hub_04(d) (discovered 4 exits: *Fac x4) -4/Factory (discovered 7 exits: Res x4 / Upp x2 / Arm) -4/Waste -4/Factory (discovered 3 exits: *Upp x2 / *Arm) -4/Armory (discovered 3 exits: *Res x2 / [*Lab]) -4/Lab -3/Research (discovered 5 exits: *Res x3 / *Tes x2) -3/Testing -2/Research (discovered 5 exits: *Acc x3 / *Qua x2) -2/Quarantine (discovered 2 exits: *Acc / *Sec) -2/Section 7 -1/Access (discovered 2 exits: Sur / *Com) -1/Command (discovered 3 exits: *Sur x2 / [*Ac0]) -1/Access_0 History --------- Turn | Location | Event 2 | -11/Scrapyard | Discovered new exit (range 16) 16 | -11/Scrapyard | Entered Materials 23 | -10/Materials | Identified exit to Mines 94 | -10/Materials | Upgraded with Weapon slot (x1) 281 | -10/Materials | Discovered new exit (range 13) 304 | -10/Materials | Identified exit to Materials 324 | -10/Materials | Build established: Hacker-Mutant 417 | -10/Materials | Central database locked down 441 | -10/Materials | Core integrity fell below 50% 472 | -10/Materials | Reached level 2 603 | -10/Materials | Entered Mines 606 | -10/Mines | Discovered exit to Materials (range 6) 607 | -10/Mines | Learned location of Storage (-9) 719 | -10/Mines | Reached level 3 739 | -10/Mines | Upgraded with Propulsion slot (x1) 830 | -10/Mines | Learned 2 Materials zone layouts 839 | -10/Mines | Discovered exit to Materials (range 5) 842 | -10/Mines | Assisted by bots powering up and referring to "LRC-V3" 1019 | -10/Mines | Entered Materials 1019 | -9/Materials | Accompanied by 5 allies 1020 | -9/Materials | Identified exit to Mines 1021 | -9/Materials | Reached level 4 1022 | -9/Materials | Discovered new exit (range 16) 1044 | -9/Materials | Reached level 5 1067 | -9/Materials | Upgraded with Utility slot (x3) 1205 | -9/Materials | Identified exit to Storage 1271 | -9/Materials | Reached level 6 1390 | -9/Materials | Core integrity fell below 50% 1412 | -9/Materials | Identified exit to Materials 1466 | -9/Materials | Reached level 7 1487 | -9/Materials | Destroyed 7 combat bots 1522 | -9/Materials | Upgraded with Weapon slot (x1) 1743 | -9/Materials | Upgraded with Power slot (x1) 1850 | -9/Materials | Reached level 8 1950 | -9/Materials | Entered Storage 1950 | -9/Storage | Accompanied by 1 ally 1967 | -9/Storage | Upgraded with Weapon slot (x1) 2008 | -9/Storage | Learned location of Armory (-4) 2009 | -9/Storage | Build established: Hacker-Gunner 2020 | -9/Storage | Met a pair of Derelict thieves 2040 | -9/Storage | Reached level 9 2155 | -9/Storage | Central database locked down 2233 | -9/Storage | Upgraded with Utility slot (x1) 2350 | -9/Storage | First assault squad dispatched 2375 | -9/Storage | Reached level 10 2438 | -9/Storage | Destroyed 10 combat bots 2517 | -9/Storage | Garrison activated, responded to threat 2530 | -9/Storage | Build established: Hacker-Sprinter 2652 | -9/Storage | Entered Materials 2652 | -8/Materials | Accompanied by 8 allies 2654 | -8/Materials | Reached level 11 2674 | -8/Materials | Reached level 12 2927 | -8/Materials | Identified exit to Factory 2970 | -8/Materials | Upgraded with Utility slot (x2) 3025 | -8/Materials | Reached level 13 3180 | -8/Materials | Garrison activated, responded to threat 3383 | -8/Materials | Entered Factory 3383 | -7/Factory | Accompanied by 1 ally 3385 | -7/Factory | Reached level 14 3435 | -7/Factory | Identified exit to Lower Caves 3618 | -7/Factory | Reached level 15 3741 | -7/Factory | Discovered new exit (range 8) 4001 | -7/Factory | Discovered new exit (range 10) 4092 | -7/Factory | Garrison activated, responded to threat 4261 | -7/Factory | Upgraded with Utility slot (x1) 4291 | -7/Factory | Reached level 16 4431 | -7/Factory | Discovered new exit (range 14) 4578 | -7/Factory | Discovered new exit (range 15) 4583 | -7/Factory | First assault squad dispatched 4837 | -7/Factory | Fabricated Imp. Melee Analysis Suite (x1) 4866 | -7/Factory | Fabricated Imp. Melee Analysis Suite (x1) 4943 | -7/Factory | Fabricated Falx (x2) 4971 | -7/Factory | Fabricated Imp. System Shield (x1) 4972 | -7/Factory | Upgraded with Utility slot (x2) 4997 | -7/Factory | Fabricated Imp. System Shield (x1) 5184 | -7/Factory | Local fabrication network quarantined 5569 | -7/Factory | Manually triggered Chute Trap 5569 | -7/Factory | Sucked down chute 5569 | -7/Factory | Entered Waste 5572 | -7/Waste | Spotted C-40 Crusher 5580 | -7/Waste | Spotted C-40 Crusher 5584 | -7/Waste | EMP discharged 5584 | -7/Waste | Spotted C-40 Crusher 5586 | -7/Waste | Spotted C-40 Crusher 5586 | -7/Waste | Discovered new exit (range 12) 5591 | -7/Waste | Entered Factory 5901 | -7/Factory | Identified exit to Factory 5994 | -7/Factory | Garrison activated, responded to threat 6094 | -7/Factory | Reached level 17 6385 | -7/Factory | Garrison activated, responded to threat 6784 | -7/Factory | Central database locked down 6922 | -7/Factory | Fabricated Imp. Hacking Suite (x1) 6991 | -7/Factory | Fabricated Spear (x2) 7010 | -7/Factory | Fabricated Imp. Maneuvering Thrusters (x1) 7045 | -7/Factory | Fabricated Imp. Armor Integrity Analyzer (x1) 7158 | -7/Factory | Fabricated Imp. Target Analyzer (x1) 7343 | -7/Factory | Entered Lower Caves 7343 | -7/Lower Caves | Accompanied by 9 allies 7345 | -7/Lower Caves | Reached level 18 7403 | -7/Lower Caves | Spotted B-75 Beast 7418 | -7/Lower Caves | Learned Factory stockpile data 7443 | -7/Lower Caves | Encountered a Warlord checkpoint 7536 | -7/Lower Caves | Discovered new exit (range 5) 7652 | -7/Lower Caves | Destroyed B-75 Beast 7693 | -7/Lower Caves | Attracted the attention of an 0b10 base 7717 | -7/Lower Caves | Core integrity fell below 50% 7751 | -7/Lower Caves | Learned location of Extension (-5) 7751 | -7/Lower Caves | Learned location of 2 exits from Lower Caves 7751 | -7/Lower Caves | Learned 6 Proximity Caves zone layouts 7751 | -7/Lower Caves | Identified exit to Lower Caves 7754 | -7/Lower Caves | Learned Factory emergency access door positions 7773 | -7/Lower Caves | Found Alien Artifact 7773 | -7/Lower Caves | Identified Core Expander 7773 | -7/Lower Caves | Installed Core Expander, added new Weapon slot 8026 | -7/Lower Caves | Entered another Lower Caves area 8026 | -7/Lower Caves | Accompanied by 8 allies 8026 | -7/Lower Caves | Discovered exit to Factory (range 11) 8027 | -7/Lower Caves | Identified exit to Zion 8065 | -7/Lower Caves | Learned location of 1 exit from Factory 8065 | -7/Lower Caves | Learned Armory trap positions 8065 | -7/Lower Caves | Learned Extension emergency access door positions 8065 | -7/Lower Caves | Learned Armory security intel 8145 | -7/Lower Caves | Attracted the attention of an 0b10 base 8205 | -7/Lower Caves | Destroyed 10 combat bots 8212 | -7/Lower Caves | Learned location of 1 exit from Factory 8220 | -7/Lower Caves | Learned 8 Factory zone layouts 8220 | -7/Lower Caves | Learned 6 Upper Caves zone layouts 8220 | -7/Lower Caves | Learned Factory security intel 8220 | -7/Lower Caves | Learned Extension security intel 8220 | -7/Lower Caves | Learned Research terminal intel 8220 | -7/Lower Caves | Learned Armory terminal intel 8489 | -7/Lower Caves | Entered Zion 8489 | -7/Zion | Accompanied by 8 allies 8507 | -7/Zion | Found Prototype Device 8507 | -7/Zion | Identified Mobile Refinery Mk. CCLXVII 8520 | -7/Zion | Discovered new exit (range 8) 8523 | -7/Zion | Given A8's code to call for help 8557 | -7/Zion | Loaded intel: 5 derelict terminal locations 8621 | -7/Zion | Acquired unknown access codes intercepted by a Zionite 8688 | -7/Zion | Gained Derelict followers 8719 | -7/Zion | Opened final containment barrier to the Deep Caves 8724 | -7/Zion | Discovered new exit (range 3) 8724 | -7/Zion | Saw the warning signs outside the Deep Caves entrance 9073 | -7/Zion | Entered Proximity Caves 9073 | -6/Proximity Caves | Accompanied by 9 allies 9075 | -6/Proximity Caves | Reached level 19 9076 | -6/Proximity Caves | Upgraded with Utility slot (x1) 9129 | -6/Proximity Caves | Spotted B-75 Beast 9157 | -6/Proximity Caves | Destroyed B-75 Beast 9296 | -6/Proximity Caves | Learned 4 Factory zone layouts 9342 | -6/Proximity Caves | P-60 Hacker assimilated allied G-47 Trooper 9386 | -6/Proximity Caves | Attracted the attention of an 0b10 checkpoint 9410 | -6/Proximity Caves | Learned Factory terminal intel 9480 | -6/Proximity Caves | Discovered exit to Factory (range 16) 9514 | -6/Proximity Caves | Learned Factory trap positions 9576 | -6/Proximity Caves | Entered Factory 9576 | -6/Factory | Accompanied by 6 allies 9577 | -6/Factory | Identified exit to Lower Caves 9578 | -6/Factory | Identified exit to Factory 9580 | -6/Factory | Loaded intel: 106 trap records 9584 | -6/Factory | Loaded intel: 20 terminal locations 9629 | -6/Factory | Reached level 20 9652 | -6/Factory | Spotted B-75 Beast 9652 | -6/Factory | Destroyed B-75 Beast 10746 | -6/Factory | Fabricated Imp. Core Analyzer? 10756 | -6/Factory | Fabricated Lance (x2) 10792 | -6/Factory | Fabricated Imp. Phase Shifter? 10796 | -6/Factory | Fabricated Lance? 11130 | -6/Factory | Fabricated Actuator Array (x1) 11137 | -6/Factory | Build established: Machinist-Sprinter 11233 | -6/Factory | Fabricated Imp. Actuator Array (x1) 11406 | -6/Factory | Local fabrication network quarantined 11597 | -6/Factory | Entered Lower Caves 11597 | -6/Lower Caves | Accompanied by 1 ally 11598 | -6/Lower Caves | Encountered a Warlord checkpoint 11598 | -6/Lower Caves | Identified exit to Lower Caves 11599 | -6/Lower Caves | Reached level 21 11611 | -6/Lower Caves | Learned Factory terminal intel 11636 | -6/Lower Caves | Attracted the attention of an 0b10 checkpoint 11683 | -6/Lower Caves | Spotted B-75 Beast 11714 | -6/Lower Caves | Destroyed B-75 Beast 11718 | -6/Lower Caves | Learned 4 Factory zone layouts 12371 | -6/Lower Caves | Entered another Lower Caves area 12375 | -6/Lower Caves | Discovered exit to Factory (range 10) 12400 | -6/Lower Caves | Attacked by a faux Warlord 12465 | -6/Lower Caves | Destroyed 8 combat bots 12675 | -6/Lower Caves | Discovered new exit (range 23) 12720 | -6/Lower Caves | Learned Factory trap positions 12729 | -6/Lower Caves | Attracted the attention of an 0b10 outpost 12799 | -6/Lower Caves | Destroyed 7 combat bots 12830 | -6/Lower Caves | Entered Data Miner 12830 | -6/Data Miner | Accompanied by 1 ally 12830 | -6/Data Miner | Discovered new exit (range 6) 12837 | -6/Data Miner | Met Data Miner 12846 | -6/Data Miner | Learned location of Section 7 (-2) 12846 | -6/Data Miner | Acquired the access code to Warlord's prototype stash 12851 | -6/Data Miner | Received God Mode back door access code from Data Miner 12858 | -6/Data Miner | Data Conduit disabled 12863 | -6/Data Miner | Entered Proximity Caves 12872 | -5/Proximity Caves | Learned Factory interactive machine intel 13071 | -5/Proximity Caves | Reached level 22 13085 | -5/Proximity Caves | Attracted the attention of an 0b10 checkpoint 13125 | -5/Proximity Caves | Attracted the attention of an 0b10 outpost 13172 | -5/Proximity Caves | Destroyed 7 combat bots 13206 | -5/Proximity Caves | Discovered exit to Factory (range 16) 13214 | -5/Proximity Caves | Learned Factory emergency access door positions 13214 | -5/Proximity Caves | Learned Factory terminal intel 13236 | -5/Proximity Caves | Build established: Hacker-Sprinter 13400 | -5/Proximity Caves | Entered Factory 13400 | -5/Factory | Accompanied by 2 allies 13401 | -5/Factory | Identified exit to Upper Caves 13401 | -5/Factory | Identified exit to Extension 13403 | -5/Factory | Loaded intel: 64 trap records 13405 | -5/Factory | Loaded intel: 47 interactive machine locations 13406 | -5/Factory | Loaded intel: 21 terminal locations 13457 | -5/Factory | Discovered new exit (range 2) 13603 | -5/Factory | Reached level 23 13606 | -5/Factory | Upgraded with Utility slot (x1) 13644 | -5/Factory | Destroyed 7 combat bots 13809 | -5/Factory | Discovered new exit (range 22) 13871 | -5/Factory | Spotted B-75 Beast 13977 | -5/Factory | Build established: Wizard-Sprinter 13979 | -5/Factory | Discovered new exit (range 9) 14208 | -5/Factory | Central database locked down 14208 | -5/Factory | Adv. Hacking Suite fried by hacking feedback 14209 | -5/Factory | Garrison activated, responded to threat 14283 | -5/Factory | Destroyed 7 combat bots 14565 | -5/Factory | Reached level 24 14612 | -5/Factory | Discovered new exit (range 10) 14710 | -5/Factory | Identified exit to Factory 14740 | -5/Factory | Adv. Hacking Suite fried by hacking feedback 14873 | -5/Factory | Fabricated Reaction Control System? 14878 | -5/Factory | Fabricated Adv. Actuator Array? 14900 | -5/Factory | First assault squad dispatched 14940 | -5/Factory | Fabricated S-27 Virus? 14954 | -5/Factory | Fabricated Adv. Target Analyzer? 15007 | -5/Factory | Fabricated I-36 Angel (x1) 15030 | -5/Factory | Build established: Hacker-Sprinter 15499 | -5/Factory | Fabricated Exp. System Shield (x1) 15516 | -5/Factory | Manually triggered Chute Trap 15516 | -5/Factory | Sucked down chute 15516 | -5/Factory | Entered Waste 15522 | -5/Waste | Spotted C-40 Crusher 15524 | -5/Waste | Spotted C-40 Crusher 15532 | -5/Waste | Spotted C-40 Crusher 15559 | -5/Waste | Spotted C-40 Crusher 15566 | -5/Waste | Spotted C-40 Crusher 15569 | -5/Waste | Spotted C-40 Crusher 15570 | -5/Waste | Discovered new exit (range 14) 15575 | -5/Waste | 4 allies followed down the chute 15580 | -5/Waste | 4 allies followed down the chute 15586 | -5/Waste | Entered Factory 15587 | -5/Factory | Loaded intel: 22 terminal locations 15589 | -5/Factory | Discovered exit to Upper Caves (range 21) 15708 | -5/Factory | Central database locked down 15764 | -5/Factory | Exp. System Shield fried by hacking feedback 15926 | -5/Factory | Fabricated Exp. System Shield (x1) 15993 | -5/Factory | Fabricated Adv. Force Field? 16029 | -5/Factory | Garrison activated, responded to threat 16158 | -5/Factory | Fabricated Adv. Target Analyzer? 16215 | -5/Factory | Fabricated Kinetic Spear (x1) 16231 | -5/Factory | Reached level 25 16487 | -5/Factory | Local fabrication network quarantined 16531 | -5/Factory | Spotted B-75 Beast 16544 | -5/Factory | Destroyed B-75 Beast 16725 | -5/Factory | Entered Extension 16725 | -5/Extension | Accompanied by 5 allies 16742 | -5/Extension | Identified exit to Cetus 16743 | -5/Extension | Rescued A7 16747 | -5/Extension | Rescued a captive Derelict 16749 | -5/Extension | Rescued a captive Derelict 16767 | -5/Extension | Rescued a captive Derelict 16829 | -5/Extension | Rescued a captive Derelict 16832 | -5/Extension | Rescued a captive Derelict 16833 | -5/Extension | Rescued a captive Derelict 16838 | -5/Extension | Rescued a captive Derelict 16854 | -5/Extension | Spotted B-75 Beast 16861 | -5/Extension | Spotted B-75 Beast 16879 | -5/Extension | Destroyed B-75 Beast 16885 | -5/Extension | Destroyed B-75 Beast 17025 | -5/Extension | First assault squad dispatched 17030 | -5/Extension | Rescued a captive Derelict 17031 | -5/Extension | Rescued a captive Derelict 17147 | -5/Extension | Rescued a captive Derelict 17147 | -5/Extension | Rescued a captive Derelict 17225 | -5/Extension | Disrupted transfer network 17235 | -5/Extension | Disrupted transfer network 17316 | -5/Extension | Entered Cetus 17316 | -5/Cetus | Accompanied by 18 allies 17321 | -5/Cetus | Acquired a Cetus Manufacturing Module code from A7 17322 | -5/Cetus | Spotted Cetus Guard 17322 | -5/Cetus | Spotted Cetus Guard 17325 | -5/Cetus | Spotted Cetus Guard 17325 | -5/Cetus | Spotted Cetus Guard 17329 | -5/Cetus | Destroyed Cetus Guard 17330 | -5/Cetus | Allies destroyed Cetus Guard 17337 | -5/Cetus | Allies destroyed Cetus Guard 17341 | -5/Cetus | Destroyed Cetus Guard 17357 | -5/Cetus | Discovered exit to Factory (range 22) 17379 | -5/Cetus | Started Cetus Manufacturing Module 17404 | -5/Cetus | Manufactured an Enhanced Grunt 17429 | -5/Cetus | Manufactured an Enhanced Grunt 17454 | -5/Cetus | Manufactured an Enhanced Grunt 17479 | -5/Cetus | Manufactured an Enhanced Grunt 17504 | -5/Cetus | Manufactured an Enhanced Grunt 17609 | -5/Cetus | Discovered new exit (range 15) 17615 | -5/Cetus | Spotted Cetus Guard 17616 | -5/Cetus | Spotted Cetus Guard 17661 | -5/Cetus | Spotted Cetus Guard 17661 | -5/Cetus | Spotted Cetus Guard 17664 | -5/Cetus | Destroyed Cetus Guard 17668 | -5/Cetus | Allies destroyed Cetus Guard 17674 | -5/Cetus | Allies destroyed Cetus Guard 17719 | -5/Cetus | Discovered exit to Factory (range 16) 17721 | -5/Cetus | Met Revision 17 17760 | -5/Cetus | P-70 Sage assimilated allied KH-25R(h) 17850 | -5/Cetus | Crushed by falling debris 17852 | -5/Cetus | Entered Archives 17852 | -5/Archives | Accompanied by 20 allies 17858 | -5/Archives | Unable to access archive contents 17860 | -5/Archives | Discovered exit to Factory (range 13) 17861 | -5/Archives | Discovered new exit (range 20) 17864 | -5/Archives | Reached level 26 17880 | -5/Archives | Discovered new exit (range 16) 17936 | -5/Archives | Entered Hub_04(d) 17936 | -5/Hub_04(d) | Accompanied by 18 allies 17939 | -5/Hub_04(d) | Discovered exit to Factory (range 22) 17940 | -5/Hub_04(d) | Discovered exit to Factory (range 3) 17976 | -5/Hub_04(d) | Discovered exit to Factory (range 18) 18163 | -5/Hub_04(d) | Garrison activated, responded to threat 18174 | -5/Hub_04(d) | Garrison activated, responded to threat 18177 | -5/Hub_04(d) | Spotted B-75 Beast 18179 | -5/Hub_04(d) | Destroyed B-75 Beast 18194 | -5/Hub_04(d) | P-70 Sage assimilated hostile L-41 Fighter 18468 | -5/Hub_04(d) | Network Hub disabled 18468 | -5/Hub_04(d) | Network Hub disabled 18468 | -5/Hub_04(d) | Allied Derelicts emerged from ambush trap array 18484 | -5/Hub_04(d) | Spotted Lightning 18491 | -5/Hub_04(d) | Network Hub disabled 18491 | -5/Hub_04(d) | Spotted Lightning 18491 | -5/Hub_04(d) | Spotted Lightning 18491 | -5/Hub_04(d) | Spotted Lightning 18507 | -5/Hub_04(d) | Entered Factory 18507 | -4/Factory | Accompanied by 5 allies 18549 | -4/Factory | Reached level 27 18555 | -4/Factory | Garrison activated, responded to threat 18584 | -4/Factory | Identified exit to Research 18745 | -4/Factory | Identified exit to Upper Caves 18745 | -4/Factory | Identified exit to Armory 18757 | -4/Factory | First assault squad dispatched 18790 | -4/Factory | High security lockdown imminent 18813 | -4/Factory | Manually triggered Chute Trap 18813 | -4/Factory | Sucked down chute 18813 | -4/Factory | Entered Waste 18814 | -4/Waste | Joined by Warlord forces that had cleared the area 18835 | -4/Waste | Found Prototype Device 18835 | -4/Waste | Identified Exp. Weapon Cycler 18887 | -4/Waste | Discovered new exit (range 13) 18921 | -4/Waste | Upgraded with Utility slot (x1) 18938 | -4/Waste | Entered Factory 18938 | -4/Factory | Accompanied by 20 allies 18957 | -4/Factory | Garrison activated, responded to threat 19016 | -4/Factory | Spotted B-86 Titan 19041 | -4/Factory | Destroyed B-86 Titan 19133 | -4/Factory | Reached level 28 19188 | -4/Factory | First assault squad dispatched 19486 | -4/Factory | Build established: Wizard-Sprinter 19526 | -4/Factory | Discovered exit to Upper Caves (range 4) 19677 | -4/Factory | High security lockdown imminent 19698 | -4/Factory | Destroyed 7 combat bots 19740 | -4/Factory | Local fabrication network quarantined 19745 | -4/Factory | Fabricated Enh. Force Lance (x1) 19757 | -4/Factory | High security lockdown engaged 19819 | -4/Factory | Entered Armory 19820 | -4/Armory | Loaded intel: 29 trap records 19822 | -4/Armory | Loaded intel: 14 terminal locations 20137 | -4/Armory | Fabricated Q-thruster (x2) 20188 | -4/Armory | Fabricated Exp. System Shield (x1) 20261 | -4/Armory | Fabricated Exp. Hacking Suite (x1) 20308 | -4/Armory | Fabricated Exp. Hacking Suite (x1) 20330 | -4/Armory | Spotted B-86 Titan 20397 | -4/Armory | Destroyed B-86 Titan 20428 | -4/Armory | Local fabrication network quarantined 20430 | -4/Armory | Build established: Wizard-Mutant 20680 | -4/Armory | Destroyed 8 combat bots 20740 | -4/Armory | Discovered new exit (range 23) 20753 | -4/Armory | Core integrity fell below 50% 20754 | -4/Armory | Entered Lab 20754 | -4/Lab | Discovered exit to Research (range 9) 20768 | -4/Lab | Entered Research 20769 | -3/Research | Loaded intel: 18 terminal locations 20769 | -3/Research | Core integrity fell below 50% 20770 | -3/Research | Reached level 29 20968 | -3/Research | Repaired Broken Imp. Diametric Drive 21063 | -3/Research | Discovered new exit (range 15) 21139 | -3/Research | Identified exit to Research 21180 | -3/Research | Found Prototype Device 21180 | -3/Research | Identified Exp. Shield Generator 21204 | -3/Research | Identified exit to Testing 21260 | -3/Research | Build established: Wizard-Sprinter 21417 | -3/Research | Reached level 30 21561 | -3/Research | Destroyed 9 combat bots 21610 | -3/Research | Found Prototype Device 21610 | -3/Research | Identified Exp. Transmission Jammer 21698 | -3/Research | Found Prototype Device 21698 | -3/Research | Identified System Purifier 21759 | -3/Research | Repaired Broken Lgt. Neutrino Core 21768 | -3/Research | First assault squad dispatched 21836 | -3/Research | Garrison activated, responded to threat 22001 | -3/Research | Spotted B-86 Titan 22011 | -3/Research | Destroyed B-86 Titan 22107 | -3/Research | P-80 Master assimilated allied G-67 Veteran 22162 | -3/Research | Spotted B-86 Titan 22162 | -3/Research | Spotted B-86 Titan 22220 | -3/Research | Destroyed B-86 Titan 22224 | -3/Research | Destroyed B-86 Titan 22321 | -3/Research | Destroyed 10 combat bots 22382 | -3/Research | Fabricated Adv. Reaction Control System? 22383 | -3/Research | Fabricated Exp. Core Analyzer (x1) 22441 | -3/Research | Fabricated Exp. Armor Integrity Analyzer (x1) 22471 | -3/Research | Local fabrication network quarantined 22507 | -3/Research | Entered Testing 22509 | -3/Testing | Reached level 31 22509 | -3/Testing | Upgraded with Utility slot (x1) 22600 | -3/Testing | Spotted Striker 22600 | -3/Testing | Spotted Striker 22786 | -3/Testing | Fabricated Exp. Target Analyzer (x1) 22824 | -3/Testing | Fabricated Exp. Phase Shifter (x1) 22860 | -3/Testing | Fabricated Cld. Antimatter Reactor (x2) 22995 | -3/Testing | Local fabrication network quarantined 23098 | -3/Testing | Found Prototype Slashing Weapon 23098 | -3/Testing | Identified Vibroblade 23125 | -3/Testing | Found Prototype Device 23125 | -3/Testing | Identified AEGIS Remote Shield 23139 | -3/Testing | Found Exp. Melee Analysis Suite 23155 | -3/Testing | Found Prototype Device 23155 | -3/Testing | Identified Exp. Hardlight Generator 23231 | -3/Testing | Spotted PY-JSJQ4767F8 23235 | -3/Testing | Destroyed PY-JSJQ4767F8 23238 | -3/Testing | Found Prototype Device 23238 | -3/Testing | Identified Thermal Barrier 23257 | -3/Testing | First assault squad dispatched 23292 | -3/Testing | Destroyed Striker 23295 | -3/Testing | Destroyed Striker 23304 | -3/Testing | Spotted Alpha 7 23320 | -3/Testing | Destroyed Alpha 7 23335 | -3/Testing | Found Prototype Device 23335 | -3/Testing | Identified Exp. ECM Suite 23352 | -3/Testing | Stole the SGEMP Prototype 23476 | -3/Testing | Entered Research 23476 | -2/Research | Accompanied by 2 allies 23566 | -2/Research | Reached level 32 23646 | -2/Research | Destroyed 14 combat bots 23730 | -2/Research | Discovered new exit (range 8) 23730 | -2/Research | Identified exit to Access 23730 | -2/Research | Identified exit to Quarantine 23983 | -2/Research | Spotted B-90 Cyclops 24001 | -2/Research | Destroyed B-90 Cyclops 24002 | -2/Research | First assault squad dispatched 24092 | -2/Research | Spotted B-90 Cyclops 24103 | -2/Research | Reached level 33 24118 | -2/Research | Destroyed B-90 Cyclops 24139 | -2/Research | Destroyed 7 combat bots 24178 | -2/Research | Garrison activated, responded to threat 24276 | -2/Research | Fabricated Femtoactuators (x1) 24290 | -2/Research | Fabricated Exp. Phase Shifter (x1) 24301 | -2/Research | Fabricated Adv. Force Booster? 24468 | -2/Research | Local fabrication network quarantined 24518 | -2/Research | Entered Quarantine 24518 | -2/Quarantine | Accompanied by 3 allies 24629 | -2/Quarantine | Found Prototype Device 24629 | -2/Quarantine | Identified Exp. Focal Shield 24705 | -2/Quarantine | Destroyed 8 combat bots 24746 | -2/Quarantine | Found Alien Artifact 24746 | -2/Quarantine | Identified Subatomic Replicator 24831 | -2/Quarantine | Found Alien Artifact 24831 | -2/Quarantine | Identified Core Reset Matrix 24831 | -2/Quarantine | Used Core Reset Matrix 24835 | -2/Quarantine | Discovered exit to Access (range 14) 24835 | -2/Quarantine | Detected hypermatrix surge 24835 | -2/Quarantine | Sensed 11 artifacts in vicinity 24859 | -2/Quarantine | Reached level 34 24866 | -2/Quarantine | Upgraded with Utility slot (x1) 24974 | -2/Quarantine | Met incapacitated Sigix Warrior 24974 | -2/Quarantine | Lockdown squad dispatched 24975 | -2/Quarantine | Acquired the access code to the Sigix quarantine chamber 24976 | -2/Quarantine | Unlocked Sigix quarantine chamber 25042 | -2/Quarantine | Spotted Fortress 25053 | -2/Quarantine | Destroyed Fortress 25079 | -2/Quarantine | Found Prototype Device 25079 | -2/Quarantine | Identified Thermal Barrier 25083 | -2/Quarantine | Found Unknown Device 25083 | -2/Quarantine | Identified Antimissile System 25108 | -2/Quarantine | Discovered new exit (range 6) 25128 | -2/Quarantine | Entered Section 7 25128 | -2/Section 7 | Accompanied by 1 ally 25129 | -2/Section 7 | Sensed 18 artifacts in vicinity 25161 | -2/Section 7 | Found Integrated Dissipator 25161 | -2/Section 7 | Installed Integrated Dissipator, increased core heat dissipation (+2%) 25185 | -2/Section 7 | Discovered exit to Access (range 16) 25192 | -2/Section 7 | Spotted B-90 Cyclops 25196 | -2/Section 7 | Destroyed B-90 Cyclops 25269 | -2/Section 7 | Spotted S7 Guard 25320 | -2/Section 7 | Destroyed S7 Guard 25365 | -2/Section 7 | Found Integrated Singularity Reactor 25365 | -2/Section 7 | Installed Integrated Singularity Reactor, increased core energy generation (+2%) 25371 | -2/Section 7 | Spotted S7 Guard 25380 | -2/Section 7 | Destroyed S7 Guard 25386 | -2/Section 7 | Found Integrated Heat Negator 25386 | -2/Section 7 | Installed Integrated Heat Negator, increased core heat dissipation (+2%) 25394 | -2/Section 7 | Spotted S7 Guard 25398 | -2/Section 7 | Destroyed S7 Guard 25410 | -2/Section 7 | Found Core Membrane 25410 | -2/Section 7 | Installed Core Membrane, gained immunity to corruption 25473 | -2/Section 7 | Destroyed 21 combat bots 25485 | -2/Section 7 | Found Integrated Reactor 25485 | -2/Section 7 | Installed Integrated Reactor, increased core energy generation (+2%) 25502 | -2/Section 7 | Found Integrated Dissipator 25502 | -2/Section 7 | Installed Integrated Dissipator, increased core heat dissipation (+2%) 25639 | -2/Section 7 | Spotted B-90 Cyclops 25644 | -2/Section 7 | Garrison activated, responded to threat 25792 | -2/Section 7 | Spotted Alpha 7 25793 | -2/Section 7 | Spotted Alpha 7 25806 | -2/Section 7 | Destroyed Alpha 7 25809 | -2/Section 7 | Destroyed Alpha 7 25825 | -2/Section 7 | Found Prototype Processor 25825 | -2/Section 7 | Identified Exp. Targeting Computer 25851 | -2/Section 7 | Spotted B-99 Colossus 25878 | -2/Section 7 | First assault squad dispatched 25901 | -2/Section 7 | Found LRC Insulator 25901 | -2/Section 7 | Installed LRC Insulator, gained EM resistance (25) 25904 | -2/Section 7 | Found LRC Matter Compressor 25904 | -2/Section 7 | Installed LRC Matter Compressor, increased matter storage capacity (+125) 25922 | -2/Section 7 | Found Core Expander 25922 | -2/Section 7 | Installed Core Expander, added new Weapon slot 25927 | -2/Section 7 | Used Subatomic Replicator to replicate Core Expander 25928 | -2/Section 7 | Found Core Expander 25928 | -2/Section 7 | Installed Core Expander, added new Power slot 25982 | -2/Section 7 | Destroyed B-99 Colossus 26045 | -2/Section 7 | Found Transdimensional Reconstructor 26057 | -2/Section 7 | Spotted Executioner 26066 | -2/Section 7 | Reached level 35 26066 | -2/Section 7 | Activated Sigix Exoskeleton 26066 | -2/Section 7 | Received instructions from Sigix Warrior 26100 | -2/Section 7 | Spotted Striker 26100 | -2/Section 7 | Spotted Striker 26122 | -2/Section 7 | Entered Access 26122 | -1/Access | Accompanied by 1 ally 26126 | -1/Access | Identified exit to Surface 26132 | -1/Access | Identified exit to Command 26293 | -1/Access | Entered Command 26293 | -1/Command | Accompanied by 1 ally 26295 | -1/Command | Reached level 36 26377 | -1/Command | Spotted B-99 Colossus 26383 | -1/Command | Destroyed B-99 Colossus 26408 | -1/Command | Spotted M Guard 26408 | -1/Command | Spotted M Guard 26408 | -1/Command | Spotted Combat Programmer 26416 | -1/Command | Spotted Combat Programmer 26430 | -1/Command | Destroyed M Guard 26437 | -1/Command | Destroyed M Guard 26440 | -1/Command | Destroyed Combat Programmer 26442 | -1/Command | Destroyed Combat Programmer 26442 | -1/Command | Destroyed all MAIN.C guards 26444 | -1/Command | Found Prototype Reactor 26444 | -1/Command | Identified Zero-point Reactor 26464 | -1/Command | Found Zero-point Reactor 26543 | -1/Command | First assault squad dispatched 26593 | -1/Command | Met MAIN.C 26593 | -1/Command | Received instructions from Sigix Warrior 26600 | -1/Command | Reached level 37 26600 | -1/Command | Destroyed MAIN.C Shell 26600 | -1/Command | 0b10 Conduit disabled 26602 | -1/Command | MAIN.C activated Command garrisons 26609 | -1/Command | Destroyed MAIN.C 26628 | -1/Command | Found Prototype Device 26628 | -1/Command | Identified Beam Splitter 26696 | -1/Command | Discovered exit to Surface (range 19) 26796 | -1/Command | Reached level 38 26853 | -1/Command | Destroyed 42 combat bots 26896 | -1/Command | Destroyed 7 combat bots 27010 | -1/Command | Phase Generator disabled 27074 | -1/Command | Spotted B-99 Colossus 27082 | -1/Command | Destroyed B-99 Colossus 27165 | -1/Command | Discovered exit to Surface (range 22) 27235 | -1/Command | Spotted B-99 Colossus 27247 | -1/Command | Destroyed B-99 Colossus 27303 | -1/Command | Spotted B-99 Colossus 27304 | -1/Command | Destroyed B-99 Colossus 28256 | -1/Command | Found Prototype Device 28256 | -1/Command | Identified Exp. Transmission Jammer 28454 | -1/Command | Warped through subspace to slip node 28454 | -1/Command | Discovered new exit (range 4) 28515 | -1/Command | Build established: Wizard-Scout 28589 | -1/Command | Crushed by falling debris 28595 | -1/Command | Crushed by falling debris 28596 | -1/Command | Core integrity fell below 50% 28596 | -1/Command | Crushed by falling debris 28597 | -1/Command | Emitted hypermatrix ping 28602 | -1/Command | Assembled emerged from beneath the floor 28617 | -1/Command | Crushed by falling debris 28618 | -1/Command | Core integrity fell below 20% 28641 | -1/Command | Crushed by falling debris 28665 | -1/Command | Entered Access_0 28665 | -1/Access_0 | Accompanied by 9 allies 28666 | -1/Access_0 | Sensed 2 artifacts in vicinity 28666 | -1/Access_0 | Met Architect 28668 | -1/Access_0 | Destroyed A8 28672 | -1/Access_0 | Architect warped through subspace 28715 | -1/Access_0 | Architect warped through subspace 28760 | -1/Access_0 | Architect warped through subspace 28804 | -1/Access_0 | Architect warped through subspace 28842 | -1/Access_0 | Architect warped through subspace 28870 | -1/Access_0 | A6 warped into view 28878 | -1/Access_0 | Destroyed A6 28883 | -1/Access_0 | Architect warped through subspace 28918 | -1/Access_0 | Architect warped through subspace 28948 | -1/Access_0 | Spotted Enhanced Programmer 28955 | -1/Access_0 | Architect warped through subspace 28964 | -1/Access_0 | Found Prototype Protection 28964 | -1/Access_0 | Identified Exp. Powered Armor 28977 | -1/Access_0 | Allies destroyed Enhanced Programmer 28989 | -1/Access_0 | Architect warped through subspace 28991 | -1/Access_0 | Found Prototype Protection 28991 | -1/Access_0 | Identified Centrium Linked Plating 29007 | -1/Access_0 | Found Prototype Device 29007 | -1/Access_0 | Identified Exp. Focal Shield 29021 | -1/Access_0 | Architect warped through subspace 29032 | -1/Access_0 | Spotted Enhanced Programmer 29048 | -1/Access_0 | Architect warped through subspace 29049 | -1/Access_0 | Destroyed Enhanced Programmer 29061 | -1/Access_0 | Found Exp. Phase Shifter 29068 | -1/Access_0 | Architect warped through subspace 29081 | -1/Access_0 | Architect warped through subspace 29091 | -1/Access_0 | Spotted Enhanced Programmer 29094 | -1/Access_0 | Destroyed Enhanced Programmer 29105 | -1/Access_0 | Architect warped through subspace 29127 | -1/Access_0 | Architect warped through subspace 29144 | -1/Access_0 | Found Prototype Device 29144 | -1/Access_0 | Identified Exp. Shock Absorption System 29149 | -1/Access_0 | Found Prototype Device 29149 | -1/Access_0 | Identified Exp. Actuator Array 29157 | -1/Access_0 | Architect warped through subspace 29168 | -1/Access_0 | A5 warped into view 29175 | -1/Access_0 | Destroyed A5 29188 | -1/Access_0 | Architect warped through subspace 29226 | -1/Access_0 | Architect warped through subspace 29243 | -1/Access_0 | Found Prototype Device 29243 | -1/Access_0 | Identified Adv. Kinecellerator 29268 | -1/Access_0 | Architect warped through subspace 29277 | -1/Access_0 | Subspace Access Node disabled 29299 | -1/Access_0 | Architect warped through subspace 29333 | -1/Access_0 | Architect warped through subspace 29354 | -1/Access_0 | A4 warped into view 29357 | -1/Access_0 | Architect warped through subspace 29377 | -1/Access_0 | Architect warped through subspace 29380 | -1/Access_0 | Destroyed A4 29401 | -1/Access_0 | Architect warped through subspace 29411 | -1/Access_0 | Subspace Access Node disabled 29425 | -1/Access_0 | Architect warped through subspace 29429 | -1/Access_0 | Found Prototype Hackware 29429 | -1/Access_0 | Identified Ghost Barrier 29450 | -1/Access_0 | Architect warped through subspace 29486 | -1/Access_0 | Spotted Enhanced Programmer 29491 | -1/Access_0 | Destroyed Enhanced Programmer 29495 | -1/Access_0 | Architect warped through subspace 29512 | -1/Access_0 | Architect warped through subspace 29527 | -1/Access_0 | Destroyed 7 combat bots 29550 | -1/Access_0 | Architect warped through subspace 29569 | -1/Access_0 | Spotted Enhanced Programmer 29574 | -1/Access_0 | Destroyed Enhanced Programmer 29581 | -1/Access_0 | Architect warped through subspace 29600 | -1/Access_0 | Architect warped through subspace 29609 | -1/Access_0 | Architect warped through subspace 29615 | -1/Access_0 | Architect warped through subspace 29619 | -1/Access_0 | Subspace Access Node disabled 29626 | -1/Access_0 | Architect warped through subspace 29635 | -1/Access_0 | Architect warped through subspace 29643 | -1/Access_0 | Architect warped through subspace 29650 | -1/Access_0 | Architect warped through subspace 29654 | -1/Access_0 | Subspace Access Node disabled 29669 | -1/Access_0 | Reached level 39 29669 | -1/Access_0 | Destroyed Architect 29670 | -1/Access_0 | Architect triggered a singularity event 29671 | -1/Access_0 | Extracted unknown sensor trigger ID from Architect's data core 29672 | -1/Access_0 | Found Prototype Hackware 29672 | -1/Access_0 | Identified Architect God Chip A 29675 | -1/Access_0 | Found Prototype Hackware 29675 | -1/Access_0 | Identified Architect God Chip D 29681 | -1/Access_0 | Crushed by singularity! Last Messages --------------- 29671_ Acquired 10 matter. 29671_ Acquired data core, extracted unknown sensor trigger ID. 29672_ A0_COM: 9. 29672_ Acquired Prototype Hackware. 29672_ Identified Architect God Chip A. 29673_ A0_COM: 8. 29674_ A0_COM: 7. 29674_ Discarded Exp. Hacking Suite. 29675_ A0_COM: 6. 29675_ Acquired Prototype Hackware. 29675_ Identified Architect God Chip D. 29676_ A0_COM: 5. 29677_ A0_COM: 4. 29677_ Discarded Exp. Hacking Suite. 29677_ Acquired Unknown Processor. 29677_ Identified Adv. Armor Integrity Analyzer. 29678_ A0_COM: 3. 29679_ A0_COM: 2. 29679_ Dropped Adv. Reaction Control System. 29680_ A0_COM: 1. Map ----- +----------------------------------------------------+ | ##??#?## ? ? ######## "########### | | ############# ######## "########### """ | | ###########?? ######## "########### # " | | ######?##?#? ######## ############# ### | | ### ## ###### ##################### | | ? ? ### ##### ##################### | | ? ## ? #### ######## ######### #########% | | ?### ? #### ######## ######### ########!! | | #### #?##### "##"#### """##*!%! | | #### ###### "" " ###* | | #### ### ##;; "" " ###! | | ######### ##""""#" """ ###= | | ## ########## ## ########" "######## | | ############## ######## ;#########" "######## | | ############# ######## ########### ########## | | ############ ######## ;########## ########## | | ############ ######## ######## # ########## | | ############ ######## # ### "######### | | ############ ######## ; ##### ##### #### | | # ########### ######## ; ###### ### #### | | # ############ ######## ;######## ### | | # ############# ###### ; ########## ## | | ############# ###### ;;########### ## | | ############### ####;# ;;;##########" ## | | ""############### ####; ;;; ########" ### ## | | =""####"####### # ### !@" ;#########" ######## | | ! "####### ###! %[! ##########" ######## | | "## ######## ######"!!"############# ######## | | " # ####### ####### ############## ######## | | "## ### ####### ############## "####### | | ### ### ###### ############## ######## | | ####### ## ###### ############## ######## | | ####### ## ##### ############## #######" | | ###?#### # ###### #############" ##### " | | ####### ###### #############" #######! | | ## ## ###### #############" #######* | | ## ###### ############## ### | | ## ## ######## ################### ### | | # ### ######### ################### ### | | ### "############ ################### | | ######" =!########### ####################### | | ######### !%]!%!*!###### ####################### | | ?####### =!==##! ###### ####################### | | ###### =%!## ###### ####################### | | ##### ! ## ###### ####################### | | ####### ### ###### ####################### | | ##?####### ### ###### ####################### | | ########## ### ##### ####################### | | ##########""##### ### ###################### | | ###########"##### ### ##"################## | +----------------------------------------------------+ Best States ------------- Heat Dissipation 117 Energy Generation 122 Energy Capacity 1605 Matter Stores 425 Matter Capacity 425 Sight Range 16 Robot Scan Range 12 Terrain Scan Range 24 Terrain Scan Density 610 Power Amplification 40 Additional Mass Support 16 Resistance: KI 30 Resistance: TH 75 Resistance: EM 25 Melee Speed Boost 50 Phase Shifting 20 Evasion (%) 98 Targeting Accuracy 32 Melee Accuracy 24 Target Analysis 12 Core Analysis 15 Armor Integrity Analysis 90 Recoil Reduction 2 Force Boost 5 Offensive Hacking 110 Defensive Hacking 135 Item Schematics ----------------- Imp. Stasis Canceller | -2/Section 7 | Hacked Exp. Core Analyzer | -2/Section 7 | Hacked Robot Schematics ------------------ S-43 Plague | -2/Section 7 | Hacked E-15 Imp | -2/Section 7 | Hacked K-01 Serf | -2/Section 7 | Hacked Fabricated ------------ Imp. Melee Analysis Suite | x1 | -7/Factory Imp. Melee Analysis Suite | x1 | -7/Factory Falx | x2 | -7/Factory | Preloaded Imp. System Shield | x1 | -7/Factory Imp. System Shield | x1 | -7/Factory Imp. Hacking Suite | x1 | -7/Factory Spear | x2 | -7/Factory Imp. Maneuvering Thrusters | x1 | -7/Factory Imp. Armor Integrity Analyzer | x1 | -7/Factory Imp. Target Analyzer | x1 | -7/Factory Imp. Core Analyzer | x1 | -6/Factory Lance | x2 | -6/Factory Imp. Phase Shifter | x1 | -6/Factory Lance | x2 | -6/Factory Actuator Array | x1 | -6/Factory Imp. Actuator Array | x1 | -6/Factory Reaction Control System | x1 | -5/Factory Adv. Actuator Array | x1 | -5/Factory S-27 Virus | x4 | -5/Factory Adv. Target Analyzer | x1 | -5/Factory I-36 Angel | x1 | -5/Factory Exp. System Shield | x1 | -5/Factory Exp. System Shield | x1 | -5/Factory Adv. Force Field | x2 | -5/Factory Adv. Target Analyzer | x1 | -5/Factory Kinetic Spear | x1 | -5/Factory Enh. Force Lance | x1 | -4/Factory Q-thruster | x2 | -4/Armory Exp. System Shield | x1 | -4/Armory Exp. Hacking Suite | x1 | -4/Armory Exp. Hacking Suite | x1 | -4/Armory Adv. Reaction Control System | x1 | -3/Research | Preloaded Exp. Core Analyzer | x1 | -3/Research Exp. Armor Integrity Analyzer | x1 | -3/Research Exp. Target Analyzer | x1 | -3/Testing Exp. Phase Shifter | x1 | -3/Testing Cld. Antimatter Reactor | x2 | -3/Testing Femtoactuators | x1 | -2/Research Exp. Phase Shifter | x1 | -2/Research Adv. Force Booster | x2 | -2/Research Alien Tech Used ----------------- Core Expander Subatomic Replicator Core Reset Matrix Integrated Dissipator Integrated Singularity Reactor Integrated Heat Negator Core Membrane Integrated Reactor LRC Insulator LRC Matter Compressor Transdimensional Reconstructor Achievements -------------- Behind The Curtain Boltbath Corridor Of Doom Killing Spree The Bigger They Are void main() Challenges ------------ None RPGLIKE | -11 -10 -10 -9 -9 -8 -7 -7 -7 -7 -7 -7 -6 -6 -6 -6 -6 -5 -5 -5 -5 -5 -5 -5 -5 -4 -4 -4 -4 -4 -3 -3 -2 -2 -2 -1 -1 -1 --------- Run | Scr Mat Min Mat Sto Mat Fac Was Fac Low Low Zio Pro Fac Low Low Dat Pro Fac Was Fac Ext Cet Arc Hub Fac Was Fac Arm Lab Res Tes Res Qua Sec Acc Com Ac0 Levels Raised 38 | . 1 1 5 2 3 3 . 1 1 . . 1 1 1 . . 1 2 . 1 . . 1 . 1 . 1 . . 2 1 2 1 1 . 3 1 XP Earned 60003 | 3000 1995 1991 6958 4036 3915 4423 67 2089 544 622 82 1174 2039 404 305 105 1275 3299 32 808 720 526 141 917 1136 32 1389 510 352 2936 754 3062 1008 1498 1140 3520 1199 XP Spent 58245 | . 2900 500 4370 3400 3700 9550 . 1400 . . . 4120 1500 300 . . . 3500 . 1900 . . . . . 4350 1900 . . . 4100 . 4400 . 1200 5155 . Upgrades 63 | . 8 1 9 4 2 5 . 4 . . . 6 2 1 . . . 1 . 2 . . . . . 2 2 . . . 1 . 1 . 1 11 . Power Slot 1 | . . . 1 . . . . . . . . . . . . . . . . . . . . . . . . . . . . . . . . . . Propulsion Slot 1 | . . 1 . . . . . . . . . . . . . . . . . . . . . . . . . . . . . . . . . . . Utility Slot 14 | . . . 3 1 2 3 . . . . . 1 . . . . . 1 . . . . . . . 1 . . . . 1 . 1 . . . . Weapon Slot 3 | . 1 . 1 1 . . . . . . . . . . . . . . . . . . . . . . . . . . . . . . . . . Heat Dissipation 2 | . . . 2 . . . . . . . . . . . . . . . . . . . . . . . . . . . . . . . . . . Energy Generation 3 | . . . . . . . . . . . . . . 1 . . . . . . . . . . . 1 1 . . . . . . . . . . Mass Support 15 | . 2 . 1 1 . . . 1 . . . 1 2 . . . . . . 2 . . . . . . 1 . . . . . . . 1 3 . Inventory Capacity 4 | . . . 1 1 . 2 . . . . . . . . . . . . . . . . . . . . . . . . . . . . . . . Sensor Range 6 | . . . . . . . . . . . . . . . . . . . . . . . . . . . . . . . . . . . . 6 . Terrain Scan Density 6 | . . . . . . . . . . . . 4 . . . . . . . . . . . . . . . . . . . . . . . 2 . Melee Accuracy 3 | . . . . . . . . 3 . . . . . . . . . . . . . . . . . . . . . . . . . . . . . Hack Attack % 2 | . 2 . . . . . . . . . . . . . . . . . . . . . . . . . . . . . . . . . . . . Hack Defense % 3 | . 3 . . . . . . . . . . . . . . . . . . . . . . . . . . . . . . . . . . . . Protomatter Created 23349 | . 127 100 591 854 735 1131 . 693 354 294 . 149 722 359 328 . 400 1663 . 1078 592 68 . 320 353 290 683 738 . 2345 408 1794 392 1467 86 2618 1617 Integrity Restored 21610 | . 255 317 1079 788 846 1951 . 1041 488 676 . 297 286 388 268 . 237 1721 . 419 272 234 119 422 261 53 987 405 . 1904 165 1175 300 729 245 1714 1568 Core 17122 | . 249 317 971 623 665 1561 . 820 392 568 . 191 233 316 219 . 199 1374 . 344 170 162 92 302 203 8 774 315 . 1513 124 962 239 573 172 1326 1145 Parts 4488 | . 6 . 108 165 181 390 . 221 96 108 . 106 53 72 49 . 38 347 . 75 102 72 27 120 58 45 213 90 . 391 41 213 61 156 73 388 423 Protomatter Decayed 28163 | . 26 5 144 686 443 221 . 455 243 158 . 142 906 224 166 . 335 1358 . 1180 609 212 42 506 262 261 1069 543 . 1860 546 1806 302 1488 . 11071 894 Game ------ Seed SurveybotHeatMachine Manual? 0 Play Time 09:17:12 Cumulative 155.0 hours Start 2020.01.17 @ 14:12:27 End 2020.01.18 @ 18:51:33 Sessions 11 Manual Loads 0 Difficulty Rogue Special Mode Winter2019/RPGLIKE Game No. 141 Rogue 141 Adventurer 0 Explorer 0 Win Type - Total 12 Types 11/0/0/1/0/0/0 Lore% 74 Gallery% 73 Achievement% 67 Wizard Run 0 Options --------- ASCII 0 Keyboard 0 Movement Numpad Keybinds 0 Fullscreen 2 Font 18/SmallcapsGlow Map View 76x50 Tactical HUD 1 Map Filters NONE Filters NONE Steam X RUN: 3ba36e45-54d6-4824-9325-b12d73bbe099